{"text_format":"1","workbook":"xlsx","n_sheets":9,"sheets":["Consignes","Saisie de dépenses","Résumé","Liste de dépenses","Dépenses mensuelles","Dépenses annuelles","Reference","FX Rates","Temp"],"not_rendered":{"charts":1,"images":0,"macros":1,"external_links":0,"defined_names":45,"comments":0,"pivot_tables":0},"unopened":[],"bounds":{"document_bytes":16777216,"sheet_cells":100000,"rows_first":2000,"rows_last":500,"rows_between":2000,"halvings":0,"cell_chars":16384,"cell_head_chars":4096},"cells_cut":0,"cells_raw":0,"read":"whole","date_system":"1900"}

{"sheet":"Consignes","index":0,"n_rows":19,"n_cols":3,"rows_kept":19,"cut":false,"hidden":false,"merged":[]}
[]
[null,null,"CFPI Journal électronique de dépenses : Consignes"]
[]
[null,null,"Bienvenue au journal électronique de dépenses de la CFPI !\nCe journal électronique est un outil facultatif pour vous aidez suivre les dépenses de votre ménage.\nMême si la fonction principale de cet outil est de vous aider à remplir l'enquête sur les dépenses de ménage administrée par la CFPI, il y a aussi des fonctions additionelles qui vous fournissent un aperçu de vos tendences de dépenses. Veuillez noter que ce journal n'est pas l'enquête réelle de la CFPI.\n\nNotez : Dans la version actuelle, les taux d'échanges utilisés correspondent à ceux fournis par le bureau de la trésorerie de l'ONU le 15 septembre 2021 (https://treasury.un.org/operationalrates/OperationalRates.php)\n\nCOMMENT UTILISER CET OUTIL :\nIl FAUT que les macros soient activées.\n\n1. Pour saisir une nouvelle dépense, soit allez à la page « Saisie de dépenses » ou cliquez sur « Ajouter une dépense ».\n2. Sur la page « Saisie de dépenses », remplissez tous les champs obligatoires et puis cliquez sur « Ajouter la dépense ».\n3. Pour réviser ou modifier l'enregistrement d'une dépenses, cliquez sur « Liste de dépenses ».\n4. Pour voir les chiffres à saisir dans l'enquête de la CFPI sur le coût de la vie, cliquez sur « Dépenses mensuelles »  et « Dépenses annuelles »."]
[]
[null,null,"La saisie de données"]
[null,null,"Vous pouvez enregistrer vos dépenses pour les différents articles du panier de biens et services de la CFPI. Ces dépenses peuvent être saisies en sélectionnant la catégorie et la sous-catégorie d'articles appropriées, et en précisant si les achats ont été effectués localement ou en dehors du pays du lieu d'affectation. L'outil vous permet de naviguer vers d'autres dates pour la saisie des données. Notez que tous les champs de saisie de données sont surlignés en jaune."]
[]
[null,null,"Le résumé"]
[null,null,"La page « Résumé »  sert de récapitulatif visuel des dépenses saisies. Toutes les valeurs affichées sur la page d'accueil sont en dollar américain (USD).\nVous pouvez accéder à d'autres fonctionnalités de ce journal à partir des boutons en bas à gauche de l'écran."]
[]
[null,null,"La liste de dépenses"]
[null,null,"Vous pouvez vous référer à « Liste de dépenses » pour reviser et/ou modifier les dépenses enregistrées. Notez que le bouton « Effacer la liste ci-dessous » effacera toutes les entrées. Pour supprimer une seule entrée, vous pouvez sélectionner la ligne, cliquer avec le bouton droit et supprimer. Nous vous encourageons à sauvegarder périodiquement une copie de l'historique de vos dépenses."]
[]
[null,null,"Les dépenses mensuelles"]
[null,null,"Le résumé des dépenses mensuelles présenté dans ce tableau adopte le même format que l'enquête CFPI sur le coût de la vie. Vous avez la possibilité d'afficher les montants des dépenses soit au prorata pour refléter une estimation mensuelle de vos habitudes de dépenses, soit un total de vos entrées. Basculez entre « Montant prorata » et « Montant total » pour sélectionner votre paramètre préféré.\n\nSi vous sélectionnez « Montant prorata », les dépenses déclarées sont calculées au prorata d'une dépense mensuelle moyenne. Par exemple, si vous avez indiqué que 100 EUR étaient dépensés en 20 jours (cette période est basée sur les dates couvertes dans la liste de dépenses), l'option « Montant prorata »  option convertit les montants saisies en un équivalent mensuel en les multipliant par un facteur 365/(12*20) pour obtenir l'estimation 152.08 EUR pendant un mois typique. De même, si vous avez indiqué que 200 EUR étaient dépensés en 45 jours, cette montant sera multiplié par 365/(12*45) pour obtenir l'estimation 135.19 EUR pendant un mois typique.\n\nÉtant donné que les valeurs au prorata expriment les dépenses au cours d'un mois, la précision des estimations augmente à mesure que la durée des données enregistrées approche la longueur d'un mois. Si votre enregistrement de données ne couvre que quelques jours et que vous avez sélectionné « Montant prorata », les valeurs de cette section seront moins précises par rapport aux enregistrements de dépenses sur plusieurs dates.\n\nConformément à la présentation de l'Enquête sur le coût de la vie de la CFPI, les totaux mensuels des dépenses dans la zone et hors zone sont enregistrés."]
[]
[null,null,"Les dépenses annuelles et peu fréquentes"]
[null,null,"Le résumé des dépenses annuelles et peu fréquentes est simplement la somme des dépenses associées aux articles achetés moins fréquemment (par exemple, les meubles, les automobiles, etc.). Contrairement aux valeurs présentées dans la section « Pour l'enquête », celles-ci n'ont PAS été calculées au prorata pour refléter une estimation mensuelle. \n\nLorsque vous remplissez l'enquête de la CFPI sur le coût de la vie, vous pouvez examiner ces valeurs à titre de référence historique pour estimer la dépense appropriée."]

{"sheet":"Saisie de dépenses","index":1,"n_rows":14,"n_cols":4,"rows_kept":14,"cut":false,"hidden":false,"merged":[]}
[]
[null,"CFPI Journal électronique : Saisie de dépenses"]
[]
[null,"PAYS DE VOTRE LIEU D'AFFECTATION","Afghanistan"]
[null,null,"Date de la dépense"]
[null,null,{"$f":"TODAY()","v":"2021-10-11"}]
[]
[null,"Catégorie d'article",null,{"$f":"IF(OR(ISBLANK(NewExpenseCategory),ISERROR(MATCH(NewExpenseCategory,GroupList,0))),\"obligatoire: sélectionner de la liste déroulante\",\"\")","v":"obligatoire: sélectionner de la liste déroulante"}]
[null,"Sous-catégorie d'article",null,{"$f":"IF(OR(ISBLANK(NewExpenseSubcategory),ISERROR(MATCH(NewExpenseSubcategory,INDIRECT(CONCATENATE(LEFT(NewExpenseCategory,3),\"List\")),0))),\"obligatoire: sélectionner de la liste déroulante\",\"\")","v":"obligatoire: sélectionner de la liste déroulante"}]
[null,"Description d'article (facultatif) "," "]
[null,"Acheté dans le / hors du pays\nde votre lieu d'affectation ? ","dans"]
[null,"Montant",null,"Veuillez entrer un nombre entier."]
[null,"Devise",{"$f":"IF(NewExpenseInsideOutside=\"dans\", VLOOKUP(DSCountry, CurrencyTable, 3, FALSE), \"USD\")","v":"AFN"},{"$f":"IF(ISBLANK(NewExpenseCurrency),\"mandatory: select from dropdown list\",\"\")","v":""}]
[null,null,"Attention : Les taux d'échanges utilisés correspondent à ceux fournis par le bureau de la trésorerie de l'ONU le 15 septembre 2021"]

{"sheet":"Résumé","index":2,"n_rows":32,"n_cols":5,"rows_kept":32,"cut":false,"hidden":false,"merged":[[4,2,4,4],[14,2,15,4]]}
[]
[null,"CFPI Journal électronique: Résumé"]
[null,"PAYS DU LIEU D'AFFECTATION","Date"]
[null,{"$f":"DSCountry","v":"Afghanistan"},{"$f":"TODAY()","v":"2021-10-11"}]
[null,null,"Le tableau et le diagramme en camembert sont basés sur toutes les dépenses inscrites dans ce journal.\nLes taux d'échanges utilisés correspondent à ceux fournis par le bureau de la trésorerie de l'ONU le 15 septembre 2021."]
[null,"Dépenses d'aujourdhui (USD)"]
[null,{"$f":"SUMIF('Liste de dépenses'!B:B,TODAY(),'Liste de dépenses'!J:J)","v":0},null,null," "]
[]
[null,{"$f":"CONCATENATE(\"Dépenses actuelles (USD) : \",VLOOKUP(MONTH(TODAY()),MonthNumberTable,2,FALSE), \" \", YEAR(TODAY()))","v":"Dépenses actuelles (USD) : octobre 2021"}]
[null,{"$f":"SUMIF('Liste de dépenses'!B:B,\">\"&(TODAY()-DAY(TODAY())),'Liste de dépenses'!J:J)","v":0},null,null," "]
[]
[null,"Dépenses moyennes (USD)"]
[null,{"$f":"SUM('Liste de dépenses'!J:J)/RecordSpan","v":0},null,null," "]
[]
[null,null,"DÉPENSES (USD)"]
[]
[null,null,"Catégorie","Dépense totale","En pourcentage"]
[null,null,"Boissons alcoolisées et tabacs",{"$f":"SUMIF('Liste de dépenses'!C:C,$C18,'Liste de dépenses'!J:J)","v":0},{"$f":"IF($D18=0,0,$D18/$D$32)","v":0}]
[null,null,"Vêtements et chaussures",{"$f":"SUMIF('Liste de dépenses'!C:C,$C19,'Liste de dépenses'!J:J)","v":0},{"$f":"IF($D19=0,0,$D19/$D$32)","v":0}]
[null,null,"Communication",{"$f":"SUMIF('Liste de dépenses'!C:C,$C20,'Liste de dépenses'!J:J)","v":0},0]
[null,null,"Éducation",{"$f":"SUMIF('Liste de dépenses'!C:C,$C21,'Liste de dépenses'!J:J)","v":0},0]
[null,null,"Produits alimentaires et boissons non alcoolisées",{"$f":"SUMIF('Liste de dépenses'!C:C,$C22,'Liste de dépenses'!J:J)","v":0},0]
[null,null,"Meubles, appareils ménagers et entretien courrant de la maison",{"$f":"SUMIF('Liste de dépenses'!C:C,$C23,'Liste de dépenses'!J:J)","v":0},0]
[null,null,"Santé",{"$f":"SUMIF('Liste de dépenses'!C:C,$C24,'Liste de dépenses'!J:J)","v":0},0]
[null,null,"Logement et services publics",{"$f":"SUMIF('Liste de dépenses'!C:C,$C25,'Liste de dépenses'!J:J)","v":0},0]
[null,null,"Biens et services divers",{"$f":"SUMIF('Liste de dépenses'!C:C,$C26,'Liste de dépenses'!J:J)","v":0},0]
[null,null,"Autres dépenses",{"$f":"SUMIF('Liste de dépenses'!C:C,$C27,'Liste de dépenses'!J:J)","v":0},0]
[null,null,"Loisirs et culture",{"$f":"SUMIF('Liste de dépenses'!C:C,$C28,'Liste de dépenses'!J:J)","v":0},0]
[null,null,"Restaurants et hôtels",{"$f":"SUMIF('Liste de dépenses'!C:C,$C29,'Liste de dépenses'!J:J)","v":0},0]
[null,null,"Transport",{"$f":"SUMIF('Liste de dépenses'!C:C,$C30,'Liste de dépenses'!J:J)","v":0},0]
[null,null,"Véhicles",{"$f":"SUMIF('Liste de dépenses'!C:C,$C31,'Liste de dépenses'!J:J)","v":0},0]
[null,null,"TOTAL",{"$f":"SUM(D18:D31)","v":0},{"$f":"SUM(E18:E31)","v":0}]

{"sheet":"Liste de dépenses","index":3,"n_rows":106,"n_cols":27,"rows_kept":106,"cut":false,"hidden":false,"merged":[[1,6,1,9],[1,1,1,5]]}
[]
[null,"CFPI Journal électronique : Liste détaillée de toutes les dépenses",null,null,null,null,"Les taux d'échanges utilisés correspondent à ceux fournis\npar le bureau de la trésorerie de l'ONU le 15 septembre 2021"]
[null,"DATE","CATÉGORIE D'ARTICLE","SOUS-CATÉGORIE D'ARTICLE","DESCRIPTION D'ARTICLE","DANS LE / HORS DU\nLIEU D'AFFECTATION","MONTANT","DEVISE","PÉRIODE","MONTANT (USD)",null,null,null,null,null,null,null,null,null,null,null,null,null,null,null,null,"PieChart1Group"]
[]
[]
[]
[]
[]
[]
[]
[]
[]
[]
[]
[]
[]
[]
[]
[]
[]
[]
[]
[]
[]
[]
[]
[]
[]
[]
[]
[]
[]
[]
[]
[]
[]
[]
[]
[]
[]
[]
[]
[]
[]
[]
[]
[]
[]
[]
[]
[]
[]
[]
[]
[]
[]
[]
[]
[]
[]
[]
[]
[null,null,null,null,null,null,null,null,null,null,null,null,null,null,null,null,null,null,null,null,null,null,null,null,null,null,{"$f":"IF(ISBLANK($D63),\"\",VLOOKUP($D63,PieChart1Grouping,2,FALSE))","v":""}]
[null,null,null,null,null,null,null,null,null,null,null,null,null,null,null,null,null,null,null,null,null,null,null,null,null,null,""]
[null,null,null,null,null,null,null,null,null,null,null,null,null,null,null,null,null,null,null,null,null,null,null,null,null,null,""]
[null,null,null,null,null,null,null,null,null,null,null,null,null,null,null,null,null,null,null,null,null,null,null,null,null,null,""]
[null,null,null,null,null,null,null,null,null,null,null,null,null,null,null,null,null,null,null,null,null,null,null,null,null,null,""]
[null,null,null,null,null,null,null,null,null,null,null,null,null,null,null,null,null,null,null,null,null,null,null,null,null,null,""]
[null,null,null,null,null,null,null,null,null,null,null,null,null,null,null,null,null,null,null,null,null,null,null,null,null,null,""]
[null,null,null,null,null,null,null,null,null,null,null,null,null,null,null,null,null,null,null,null,null,null,null,null,null,null,{"$f":"IF(ISBLANK($D70),\"\",VLOOKUP($D70,PieChart1Grouping,2,FALSE))","v":""}]
[null,null,null,null,null,null,null,null,null,null,null,null,null,null,null,null,null,null,null,null,null,null,null,null,null,null,""]
[null,null,null,null,null,null,null,null,null,null,null,null,null,null,null,null,null,null,null,null,null,null,null,null,null,null,""]
[null,null,null,null,null,null,null,null,null,null,null,null,null,null,null,null,null,null,null,null,null,null,null,null,null,null,""]
[null,null,null,null,null,null,null,null,null,null,null,null,null,null,null,null,null,null,null,null,null,null,null,null,null,null,""]
[null,null,null,null,null,null,null,null,null,null,null,null,null,null,null,null,null,null,null,null,null,null,null,null,null,null,""]
[null,null,null,null,null,null,null,null,null,null,null,null,null,null,null,null,null,null,null,null,null,null,null,null,null,null,""]
[null,null,null,null,null,null,null,null,null,null,null,null,null,null,null,null,null,null,null,null,null,null,null,null,null,null,{"$f":"IF(ISBLANK($D77),\"\",VLOOKUP($D77,PieChart1Grouping,2,FALSE))","v":""}]
[null,null,null,null,null,null,null,null,null,null,null,null,null,null,null,null,null,null,null,null,null,null,null,null,null,null,""]
[null,null,null,null,null,null,null,null,null,null,null,null,null,null,null,null,null,null,null,null,null,null,null,null,null,null,""]
[null,null,null,null,null,null,null,null,null,null,null,null,null,null,null,null,null,null,null,null,null,null,null,null,null,null,""]
[null,null,null,null,null,null,null,null,null,null,null,null,null,null,null,null,null,null,null,null,null,null,null,null,null,null,""]
[null,null,null,null,null,null,null,null,null,null,null,null,null,null,null,null,null,null,null,null,null,null,null,null,null,null,""]
[null,null,null,null,null,null,null,null,null,null,null,null,null,null,null,null,null,null,null,null,null,null,null,null,null,null,""]
[null,null,null,null,null,null,null,null,null,null,null,null,null,null,null,null,null,null,null,null,null,null,null,null,null,null,""]
[null,null,null,null,null,null,null,null,null,null,null,null,null,null,null,null,null,null,null,null,null,null,null,null,null,null,""]
[null,null,null,null,null,null,null,null,null,null,null,null,null,null,null,null,null,null,null,null,null,null,null,null,null,null,""]
[null,null,null,null,null,null,null,null,null,null,null,null,null,null,null,null,null,null,null,null,null,null,null,null,null,null,""]
[null,null,null,null,null,null,null,null,null,null,null,null,null,null,null,null,null,null,null,null,null,null,null,null,null,null,""]
[null,null,null,null,null,null,null,null,null,null,null,null,null,null,null,null,null,null,null,null,null,null,null,null,null,null,""]
[null,null,null,null,null,null,null,null,null,null,null,null,null,null,null,null,null,null,null,null,null,null,null,null,null,null,""]
[null,null,null,null,null,null,null,null,null,null,null,null,null,null,null,null,null,null,null,null,null,null,null,null,null,null,""]
[null,null,null,null,null,null,null,null,null,null,null,null,null,null,null,null,null,null,null,null,null,null,null,null,null,null,""]
[null,null,null,null,null,null,null,null,null,null,null,null,null,null,null,null,null,null,null,null,null,null,null,null,null,null,""]
[null,null,null,null,null,null,null,null,null,null,null,null,null,null,null,null,null,null,null,null,null,null,null,null,null,null,""]
[null,null,null,null,null,null,null,null,null,null,null,null,null,null,null,null,null,null,null,null,null,null,null,null,null,null,""]
[null,null,null,null,null,null,null,null,null,null,null,null,null,null,null,null,null,null,null,null,null,null,null,null,null,null,""]
[null,null,null,null,null,null,null,null,null,null,null,null,null,null,null,null,null,null,null,null,null,null,null,null,null,null,""]
[null,null,null,null,null,null,null,null,null,null,null,null,null,null,null,null,null,null,null,null,null,null,null,null,null,null,""]
[null,null,null,null,null,null,null,null,null,null,null,null,null,null,null,null,null,null,null,null,null,null,null,null,null,null,""]
[null,null,null,null,null,null,null,null,null,null,null,null,null,null,null,null,null,null,null,null,null,null,null,null,null,null,""]
[null,null,null,null,null,null,null,null,null,null,null,null,null,null,null,null,null,null,null,null,null,null,null,null,null,null,""]
[null,null,null,null,null,null,null,null,null,null,null,null,null,null,null,null,null,null,null,null,null,null,null,null,null,null,""]
[null,null,null,null,null,null,null,null,null,null,null,null,null,null,null,null,null,null,null,null,null,null,null,null,null,null,""]
[null,null,null,null,null,null,null,null,null,null,null,null,null,null,null,null,null,null,null,null,null,null,null,null,null,null,""]
[null,null,null,null,null,null,null,null,null,null,null,null,null,null,null,null,null,null,null,null,null,null,null,null,null,null,""]
[null,null,null,null,null,null,null,null,null,null,null,null,null,null,null,null,null,null,null,null,null,null,null,null,null,null,""]

{"sheet":"Dépenses mensuelles","index":4,"n_rows":42,"n_cols":9,"rows_kept":42,"cut":false,"hidden":false,"merged":[[0,1,0,8],[1,3,2,3],[3,1,41,1]]}
[null,{"$f":"IF(ProRateOrSum=1, \"NOTE: L'exactitude des estimations au prorata dépend de la période couverte par les dépenses enregistrées. Voir \"\"Consignes\"\" pour les détails.\",\"\")","v":""}]
[null,null,null,"CFPI Journal électronique pour\nles dépenses mensuelles","À L'INTÉRIEUR\n(du pays du lieu d'affectation)",null,null,"DEHORS\n(du pays du lieu d'affectation)"]
[null,null,null,null,"Dépenses locales\nen monnaie locale","Dépenses en monnaie étrangère\n(exprimées en USD)",null,"Dépenses non locales\n(exprimées en USD)"]
[null,"DÉPENSES MENSUELLES","Produits alimentaires et boissons non alcoolisées"]
[null,null,1,"Nourriture achetée aux supermarchés, épiceries, etc",{"$f":"SUMIFS('Liste de dépenses'!G:G,'Liste de dépenses'!D:D,'Dépenses mensuelles'!$D5,'Liste de dépenses'!F:F,\"dans\",'Liste de dépenses'!H:H,LocalCurrencyCode)*(IF(ProRateOrSum=1,MonthlyMultiplier,1))","v":0},{"$f":"SUMIFS('Liste de dépenses'!J:J,'Liste de dépenses'!D:D,'Dépenses mensuelles'!$D5,'Liste de dépenses'!F:F,\"dans\",'Liste de dépenses'!H:H,\"<>\"&LocalCurrencyCode)*(IF(ProRateOrSum=1,MonthlyMultiplier,1))","v":0},"USD",{"$f":"SUMIFS('Liste de dépenses'!J:J,'Liste de dépenses'!D:D,'Dépenses mensuelles'!$D5,'Liste de dépenses'!F:F,\"hors de\")*(IF(ProRateOrSum=1,MonthlyMultiplier,1))","v":0},"USD"]
[null,null,2,"Boissons non alcoolisées",{"$f":"SUMIFS('Liste de dépenses'!G:G,'Liste de dépenses'!D:D,'Dépenses mensuelles'!$D6,'Liste de dépenses'!F:F,\"dans\",'Liste de dépenses'!H:H,LocalCurrencyCode)*(IF(ProRateOrSum=1,MonthlyMultiplier,1))","v":0},{"$f":"SUMIFS('Liste de dépenses'!J:J,'Liste de dépenses'!D:D,'Dépenses mensuelles'!$D6,'Liste de dépenses'!F:F,\"dans\",'Liste de dépenses'!H:H,\"<>\"&LocalCurrencyCode)*(IF(ProRateOrSum=1,MonthlyMultiplier,1))","v":0},"USD",{"$f":"SUMIFS('Liste de dépenses'!J:J,'Liste de dépenses'!D:D,'Dépenses mensuelles'!$D6,'Liste de dépenses'!F:F,\"hors de\")*(IF(ProRateOrSum=1,MonthlyMultiplier,1))","v":0},"USD"]
[null,null,"Boissons alcoolisées et tabacs"]
[null,null,3,"Boissons alcoolisées",{"$f":"SUMIFS('Liste de dépenses'!G:G,'Liste de dépenses'!D:D,'Dépenses mensuelles'!$D8,'Liste de dépenses'!F:F,\"dans\",'Liste de dépenses'!H:H,LocalCurrencyCode)*(IF(ProRateOrSum=1,MonthlyMultiplier,1))","v":0},{"$f":"SUMIFS('Liste de dépenses'!J:J,'Liste de dépenses'!D:D,'Dépenses mensuelles'!$D8,'Liste de dépenses'!F:F,\"dans\",'Liste de dépenses'!H:H,\"<>\"&LocalCurrencyCode)*(IF(ProRateOrSum=1,MonthlyMultiplier,1))","v":0},"USD",{"$f":"SUMIFS('Liste de dépenses'!J:J,'Liste de dépenses'!D:D,'Dépenses mensuelles'!$D8,'Liste de dépenses'!F:F,\"hors de\")*(IF(ProRateOrSum=1,MonthlyMultiplier,1))","v":0},"USD"]
[null,null,4,"Tabacs",{"$f":"SUMIFS('Liste de dépenses'!G:G,'Liste de dépenses'!D:D,'Dépenses mensuelles'!$D9,'Liste de dépenses'!F:F,\"dans\",'Liste de dépenses'!H:H,LocalCurrencyCode)*(IF(ProRateOrSum=1,MonthlyMultiplier,1))","v":0},{"$f":"SUMIFS('Liste de dépenses'!J:J,'Liste de dépenses'!D:D,'Dépenses mensuelles'!$D9,'Liste de dépenses'!F:F,\"dans\",'Liste de dépenses'!H:H,\"<>\"&LocalCurrencyCode)*(IF(ProRateOrSum=1,MonthlyMultiplier,1))","v":0},"USD",{"$f":"SUMIFS('Liste de dépenses'!J:J,'Liste de dépenses'!D:D,'Dépenses mensuelles'!$D9,'Liste de dépenses'!F:F,\"hors de\")*(IF(ProRateOrSum=1,MonthlyMultiplier,1))","v":0},"USD"]
[null,null,"Vêtements et chaussures"]
[null,null,5,"Nettoyage et réparation de vêtements",{"$f":"SUMIFS('Liste de dépenses'!G:G,'Liste de dépenses'!D:D,'Dépenses mensuelles'!$D11,'Liste de dépenses'!F:F,\"dans\",'Liste de dépenses'!H:H,LocalCurrencyCode)*(IF(ProRateOrSum=1,MonthlyMultiplier,1))","v":0},{"$f":"SUMIFS('Liste de dépenses'!J:J,'Liste de dépenses'!D:D,'Dépenses mensuelles'!$D11,'Liste de dépenses'!F:F,\"dans\",'Liste de dépenses'!H:H,\"<>\"&LocalCurrencyCode)*(IF(ProRateOrSum=1,MonthlyMultiplier,1))","v":0},"USD",{"$f":"SUMIFS('Liste de dépenses'!J:J,'Liste de dépenses'!D:D,'Dépenses mensuelles'!$D11,'Liste de dépenses'!F:F,\"hors de\")*(IF(ProRateOrSum=1,MonthlyMultiplier,1))","v":0},"USD"]
[null,null,6,"Réparation de chaussures",{"$f":"SUMIFS('Liste de dépenses'!G:G,'Liste de dépenses'!D:D,'Dépenses mensuelles'!$D12,'Liste de dépenses'!F:F,\"dans\",'Liste de dépenses'!H:H,LocalCurrencyCode)*(IF(ProRateOrSum=1,MonthlyMultiplier,1))","v":0},{"$f":"SUMIFS('Liste de dépenses'!J:J,'Liste de dépenses'!D:D,'Dépenses mensuelles'!$D12,'Liste de dépenses'!F:F,\"dans\",'Liste de dépenses'!H:H,\"<>\"&LocalCurrencyCode)*(IF(ProRateOrSum=1,MonthlyMultiplier,1))","v":0},"USD",{"$f":"SUMIFS('Liste de dépenses'!J:J,'Liste de dépenses'!D:D,'Dépenses mensuelles'!$D12,'Liste de dépenses'!F:F,\"hors de\")*(IF(ProRateOrSum=1,MonthlyMultiplier,1))","v":0},"USD"]
[null,null,"Meubles, appareils ménagers et entretien courrant de la maison"]
[null,null,7,"Articles ménagers jetables",{"$f":"SUMIFS('Liste de dépenses'!G:G,'Liste de dépenses'!D:D,'Dépenses mensuelles'!$D14,'Liste de dépenses'!F:F,\"dans\",'Liste de dépenses'!H:H,LocalCurrencyCode)*(IF(ProRateOrSum=1,MonthlyMultiplier,1))","v":0},{"$f":"SUMIFS('Liste de dépenses'!J:J,'Liste de dépenses'!D:D,'Dépenses mensuelles'!$D14,'Liste de dépenses'!F:F,\"dans\",'Liste de dépenses'!H:H,\"<>\"&LocalCurrencyCode)*(IF(ProRateOrSum=1,MonthlyMultiplier,1))","v":0},"USD",{"$f":"SUMIFS('Liste de dépenses'!J:J,'Liste de dépenses'!D:D,'Dépenses mensuelles'!$D14,'Liste de dépenses'!F:F,\"hors de\")*(IF(ProRateOrSum=1,MonthlyMultiplier,1))","v":0},"USD"]
[null,null,"Santé"]
[null,null,8,"Médicaments sur ordonnance",{"$f":"SUMIFS('Liste de dépenses'!G:G,'Liste de dépenses'!D:D,'Dépenses mensuelles'!$D16,'Liste de dépenses'!F:F,\"dans\",'Liste de dépenses'!H:H,LocalCurrencyCode)*(IF(ProRateOrSum=1,MonthlyMultiplier,1))","v":0},{"$f":"SUMIFS('Liste de dépenses'!J:J,'Liste de dépenses'!D:D,'Dépenses mensuelles'!$D16,'Liste de dépenses'!F:F,\"dans\",'Liste de dépenses'!H:H,\"<>\"&LocalCurrencyCode)*(IF(ProRateOrSum=1,MonthlyMultiplier,1))","v":0},"USD",{"$f":"SUMIFS('Liste de dépenses'!J:J,'Liste de dépenses'!D:D,'Dépenses mensuelles'!$D16,'Liste de dépenses'!F:F,\"hors de\")*(IF(ProRateOrSum=1,MonthlyMultiplier,1))","v":0},"USD"]
[null,null,9,"Médicaments sans ordonnance et vitamines",{"$f":"SUMIFS('Liste de dépenses'!G:G,'Liste de dépenses'!D:D,'Dépenses mensuelles'!$D17,'Liste de dépenses'!F:F,\"dans\",'Liste de dépenses'!H:H,LocalCurrencyCode)*(IF(ProRateOrSum=1,MonthlyMultiplier,1))","v":0},{"$f":"SUMIFS('Liste de dépenses'!J:J,'Liste de dépenses'!D:D,'Dépenses mensuelles'!$D17,'Liste de dépenses'!F:F,\"dans\",'Liste de dépenses'!H:H,\"<>\"&LocalCurrencyCode)*(IF(ProRateOrSum=1,MonthlyMultiplier,1))","v":0},"USD",{"$f":"SUMIFS('Liste de dépenses'!J:J,'Liste de dépenses'!D:D,'Dépenses mensuelles'!$D17,'Liste de dépenses'!F:F,\"hors de\")*(IF(ProRateOrSum=1,MonthlyMultiplier,1))","v":0},"USD"]
[null,null,10,"Assurance médicale additionnelle",{"$f":"SUMIFS('Liste de dépenses'!G:G,'Liste de dépenses'!D:D,'Dépenses mensuelles'!$D18,'Liste de dépenses'!F:F,\"dans\",'Liste de dépenses'!H:H,LocalCurrencyCode)*(IF(ProRateOrSum=1,MonthlyMultiplier,1))","v":0},{"$f":"SUMIFS('Liste de dépenses'!J:J,'Liste de dépenses'!D:D,'Dépenses mensuelles'!$D18,'Liste de dépenses'!F:F,\"dans\",'Liste de dépenses'!H:H,\"<>\"&LocalCurrencyCode)*(IF(ProRateOrSum=1,MonthlyMultiplier,1))","v":0},"USD",{"$f":"SUMIFS('Liste de dépenses'!J:J,'Liste de dépenses'!D:D,'Dépenses mensuelles'!$D18,'Liste de dépenses'!F:F,\"hors de\")*(IF(ProRateOrSum=1,MonthlyMultiplier,1))","v":0},"USD"]
[null,null,"Transport"]
[null,null,11,"Carburants et lubrifiants pour le transport personnel",{"$f":"SUMIFS('Liste de dépenses'!G:G,'Liste de dépenses'!D:D,'Dépenses mensuelles'!$D20,'Liste de dépenses'!F:F,\"dans\",'Liste de dépenses'!H:H,LocalCurrencyCode)*(IF(ProRateOrSum=1,MonthlyMultiplier,1))","v":0},{"$f":"SUMIFS('Liste de dépenses'!J:J,'Liste de dépenses'!D:D,'Dépenses mensuelles'!$D20,'Liste de dépenses'!F:F,\"dans\",'Liste de dépenses'!H:H,\"<>\"&LocalCurrencyCode)*(IF(ProRateOrSum=1,MonthlyMultiplier,1))","v":0},"USD",{"$f":"SUMIFS('Liste de dépenses'!J:J,'Liste de dépenses'!D:D,'Dépenses mensuelles'!$D20,'Liste de dépenses'!F:F,\"hors de\")*(IF(ProRateOrSum=1,MonthlyMultiplier,1))","v":0},"USD"]
[null,null,12,"Assurance automobile",{"$f":"SUMIFS('Liste de dépenses'!G:G,'Liste de dépenses'!D:D,'Dépenses mensuelles'!$D21,'Liste de dépenses'!F:F,\"dans\",'Liste de dépenses'!H:H,LocalCurrencyCode)*(IF(ProRateOrSum=1,MonthlyMultiplier,1))","v":0},{"$f":"SUMIFS('Liste de dépenses'!J:J,'Liste de dépenses'!D:D,'Dépenses mensuelles'!$D21,'Liste de dépenses'!F:F,\"dans\",'Liste de dépenses'!H:H,\"<>\"&LocalCurrencyCode)*(IF(ProRateOrSum=1,MonthlyMultiplier,1))","v":0},"USD",{"$f":"SUMIFS('Liste de dépenses'!J:J,'Liste de dépenses'!D:D,'Dépenses mensuelles'!$D21,'Liste de dépenses'!F:F,\"hors de\")*(IF(ProRateOrSum=1,MonthlyMultiplier,1))","v":0},"USD"]
[null,null,13,"Taxi",{"$f":"SUMIFS('Liste de dépenses'!G:G,'Liste de dépenses'!D:D,'Dépenses mensuelles'!$D22,'Liste de dépenses'!F:F,\"dans\",'Liste de dépenses'!H:H,LocalCurrencyCode)*(IF(ProRateOrSum=1,MonthlyMultiplier,1))","v":0},{"$f":"SUMIFS('Liste de dépenses'!J:J,'Liste de dépenses'!D:D,'Dépenses mensuelles'!$D22,'Liste de dépenses'!F:F,\"dans\",'Liste de dépenses'!H:H,\"<>\"&LocalCurrencyCode)*(IF(ProRateOrSum=1,MonthlyMultiplier,1))","v":0},"USD",{"$f":"SUMIFS('Liste de dépenses'!J:J,'Liste de dépenses'!D:D,'Dépenses mensuelles'!$D22,'Liste de dépenses'!F:F,\"hors de\")*(IF(ProRateOrSum=1,MonthlyMultiplier,1))","v":0},"USD"]
[null,null,14,"Services de transport locaux",{"$f":"SUMIFS('Liste de dépenses'!G:G,'Liste de dépenses'!D:D,'Dépenses mensuelles'!$D23,'Liste de dépenses'!F:F,\"dans\",'Liste de dépenses'!H:H,LocalCurrencyCode)*(IF(ProRateOrSum=1,MonthlyMultiplier,1))","v":0},{"$f":"SUMIFS('Liste de dépenses'!J:J,'Liste de dépenses'!D:D,'Dépenses mensuelles'!$D23,'Liste de dépenses'!F:F,\"dans\",'Liste de dépenses'!H:H,\"<>\"&LocalCurrencyCode)*(IF(ProRateOrSum=1,MonthlyMultiplier,1))","v":0},"USD",{"$f":"SUMIFS('Liste de dépenses'!J:J,'Liste de dépenses'!D:D,'Dépenses mensuelles'!$D23,'Liste de dépenses'!F:F,\"hors de\")*(IF(ProRateOrSum=1,MonthlyMultiplier,1))","v":0},"USD"]
[null,null,"Communication"]
[null,null,15,"Services postaux",{"$f":"SUMIFS('Liste de dépenses'!G:G,'Liste de dépenses'!D:D,'Dépenses mensuelles'!$D25,'Liste de dépenses'!F:F,\"dans\",'Liste de dépenses'!H:H,LocalCurrencyCode)*(IF(ProRateOrSum=1,MonthlyMultiplier,1))","v":0},{"$f":"SUMIFS('Liste de dépenses'!J:J,'Liste de dépenses'!D:D,'Dépenses mensuelles'!$D25,'Liste de dépenses'!F:F,\"dans\",'Liste de dépenses'!H:H,\"<>\"&LocalCurrencyCode)*(IF(ProRateOrSum=1,MonthlyMultiplier,1))","v":0},"USD",{"$f":"SUMIFS('Liste de dépenses'!J:J,'Liste de dépenses'!D:D,'Dépenses mensuelles'!$D25,'Liste de dépenses'!F:F,\"hors de\")*(IF(ProRateOrSum=1,MonthlyMultiplier,1))","v":0},"USD"]
[null,null,16,"Services de téléphone, internet et communication",{"$f":"SUMIFS('Liste de dépenses'!G:G,'Liste de dépenses'!D:D,'Dépenses mensuelles'!$D26,'Liste de dépenses'!F:F,\"dans\",'Liste de dépenses'!H:H,LocalCurrencyCode)*(IF(ProRateOrSum=1,MonthlyMultiplier,1))","v":0},{"$f":"SUMIFS('Liste de dépenses'!J:J,'Liste de dépenses'!D:D,'Dépenses mensuelles'!$D26,'Liste de dépenses'!F:F,\"dans\",'Liste de dépenses'!H:H,\"<>\"&LocalCurrencyCode)*(IF(ProRateOrSum=1,MonthlyMultiplier,1))","v":0},"USD",{"$f":"SUMIFS('Liste de dépenses'!J:J,'Liste de dépenses'!D:D,'Dépenses mensuelles'!$D26,'Liste de dépenses'!F:F,\"hors de\")*(IF(ProRateOrSum=1,MonthlyMultiplier,1))","v":0},"USD"]
[null,null,"Loisirs et culture"]
[null,null,17,"Animaux de compagnie et produits et services connexes",{"$f":"SUMIFS('Liste de dépenses'!G:G,'Liste de dépenses'!D:D,'Dépenses mensuelles'!$D28,'Liste de dépenses'!F:F,\"dans\",'Liste de dépenses'!H:H,LocalCurrencyCode)*(IF(ProRateOrSum=1,MonthlyMultiplier,1))","v":0},{"$f":"SUMIFS('Liste de dépenses'!J:J,'Liste de dépenses'!D:D,'Dépenses mensuelles'!$D28,'Liste de dépenses'!F:F,\"dans\",'Liste de dépenses'!H:H,\"<>\"&LocalCurrencyCode)*(IF(ProRateOrSum=1,MonthlyMultiplier,1))","v":0},"USD",{"$f":"SUMIFS('Liste de dépenses'!J:J,'Liste de dépenses'!D:D,'Dépenses mensuelles'!$D28,'Liste de dépenses'!F:F,\"hors de\")*(IF(ProRateOrSum=1,MonthlyMultiplier,1))","v":0},"USD"]
[null,null,18,"Cinéma, théâtre, concerts et d’autres activités connexes",{"$f":"SUMIFS('Liste de dépenses'!G:G,'Liste de dépenses'!D:D,'Dépenses mensuelles'!$D29,'Liste de dépenses'!F:F,\"dans\",'Liste de dépenses'!H:H,LocalCurrencyCode)*(IF(ProRateOrSum=1,MonthlyMultiplier,1))","v":0},{"$f":"SUMIFS('Liste de dépenses'!J:J,'Liste de dépenses'!D:D,'Dépenses mensuelles'!$D29,'Liste de dépenses'!F:F,\"dans\",'Liste de dépenses'!H:H,\"<>\"&LocalCurrencyCode)*(IF(ProRateOrSum=1,MonthlyMultiplier,1))","v":0},"USD",{"$f":"SUMIFS('Liste de dépenses'!J:J,'Liste de dépenses'!D:D,'Dépenses mensuelles'!$D29,'Liste de dépenses'!F:F,\"hors de\")*(IF(ProRateOrSum=1,MonthlyMultiplier,1))","v":0},"USD"]
[null,null,19,"Manifestations sportives et activités connexes",{"$f":"SUMIFS('Liste de dépenses'!G:G,'Liste de dépenses'!D:D,'Dépenses mensuelles'!$D30,'Liste de dépenses'!F:F,\"dans\",'Liste de dépenses'!H:H,LocalCurrencyCode)*(IF(ProRateOrSum=1,MonthlyMultiplier,1))","v":0},{"$f":"SUMIFS('Liste de dépenses'!J:J,'Liste de dépenses'!D:D,'Dépenses mensuelles'!$D30,'Liste de dépenses'!F:F,\"dans\",'Liste de dépenses'!H:H,\"<>\"&LocalCurrencyCode)*(IF(ProRateOrSum=1,MonthlyMultiplier,1))","v":0},"USD",{"$f":"SUMIFS('Liste de dépenses'!J:J,'Liste de dépenses'!D:D,'Dépenses mensuelles'!$D30,'Liste de dépenses'!F:F,\"hors de\")*(IF(ProRateOrSum=1,MonthlyMultiplier,1))","v":0},"USD"]
[null,null,20,"Développement de pellicules et tirage",{"$f":"SUMIFS('Liste de dépenses'!G:G,'Liste de dépenses'!D:D,'Dépenses mensuelles'!$D31,'Liste de dépenses'!F:F,\"dans\",'Liste de dépenses'!H:H,LocalCurrencyCode)*(IF(ProRateOrSum=1,MonthlyMultiplier,1))","v":0},{"$f":"SUMIFS('Liste de dépenses'!J:J,'Liste de dépenses'!D:D,'Dépenses mensuelles'!$D31,'Liste de dépenses'!F:F,\"dans\",'Liste de dépenses'!H:H,\"<>\"&LocalCurrencyCode)*(IF(ProRateOrSum=1,MonthlyMultiplier,1))","v":0},"USD",{"$f":"SUMIFS('Liste de dépenses'!J:J,'Liste de dépenses'!D:D,'Dépenses mensuelles'!$D31,'Liste de dépenses'!F:F,\"hors de\")*(IF(ProRateOrSum=1,MonthlyMultiplier,1))","v":0},"USD"]
[null,null,21,"Livres, journaux et périodiques",{"$f":"SUMIFS('Liste de dépenses'!G:G,'Liste de dépenses'!D:D,'Dépenses mensuelles'!$D32,'Liste de dépenses'!F:F,\"dans\",'Liste de dépenses'!H:H,LocalCurrencyCode)*(IF(ProRateOrSum=1,MonthlyMultiplier,1))","v":0},{"$f":"SUMIFS('Liste de dépenses'!J:J,'Liste de dépenses'!D:D,'Dépenses mensuelles'!$D32,'Liste de dépenses'!F:F,\"dans\",'Liste de dépenses'!H:H,\"<>\"&LocalCurrencyCode)*(IF(ProRateOrSum=1,MonthlyMultiplier,1))","v":0},"USD",{"$f":"SUMIFS('Liste de dépenses'!J:J,'Liste de dépenses'!D:D,'Dépenses mensuelles'!$D32,'Liste de dépenses'!F:F,\"hors de\")*(IF(ProRateOrSum=1,MonthlyMultiplier,1))","v":0},"USD"]
[null,null,22,"Papeterie et matériel de dessin",{"$f":"SUMIFS('Liste de dépenses'!G:G,'Liste de dépenses'!D:D,'Dépenses mensuelles'!$D33,'Liste de dépenses'!F:F,\"dans\",'Liste de dépenses'!H:H,LocalCurrencyCode)*(IF(ProRateOrSum=1,MonthlyMultiplier,1))","v":0},{"$f":"SUMIFS('Liste de dépenses'!J:J,'Liste de dépenses'!D:D,'Dépenses mensuelles'!$D33,'Liste de dépenses'!F:F,\"dans\",'Liste de dépenses'!H:H,\"<>\"&LocalCurrencyCode)*(IF(ProRateOrSum=1,MonthlyMultiplier,1))","v":0},"USD",{"$f":"SUMIFS('Liste de dépenses'!J:J,'Liste de dépenses'!D:D,'Dépenses mensuelles'!$D33,'Liste de dépenses'!F:F,\"hors de\")*(IF(ProRateOrSum=1,MonthlyMultiplier,1))","v":0},"USD"]
[null,null,"Restaurants et hôtels"]
[null,null,23,"Repas et boissons achetés dans les restaurants du personnel, la cafétéria",{"$f":"SUMIFS('Liste de dépenses'!G:G,'Liste de dépenses'!D:D,'Dépenses mensuelles'!$D35,'Liste de dépenses'!F:F,\"dans\",'Liste de dépenses'!H:H,LocalCurrencyCode)*(IF(ProRateOrSum=1,MonthlyMultiplier,1))","v":0},{"$f":"SUMIFS('Liste de dépenses'!J:J,'Liste de dépenses'!D:D,'Dépenses mensuelles'!$D35,'Liste de dépenses'!F:F,\"dans\",'Liste de dépenses'!H:H,\"<>\"&LocalCurrencyCode)*(IF(ProRateOrSum=1,MonthlyMultiplier,1))","v":0},"USD",{"$f":"SUMIFS('Liste de dépenses'!J:J,'Liste de dépenses'!D:D,'Dépenses mensuelles'!$D35,'Liste de dépenses'!F:F,\"hors de\")*(IF(ProRateOrSum=1,MonthlyMultiplier,1))","v":0},"USD"]
[null,null,24,"Repas et boissons achetés dans les restaurants et cafés commerciaux",{"$f":"SUMIFS('Liste de dépenses'!G:G,'Liste de dépenses'!D:D,'Dépenses mensuelles'!$D36,'Liste de dépenses'!F:F,\"dans\",'Liste de dépenses'!H:H,LocalCurrencyCode)*(IF(ProRateOrSum=1,MonthlyMultiplier,1))","v":0},{"$f":"SUMIFS('Liste de dépenses'!J:J,'Liste de dépenses'!D:D,'Dépenses mensuelles'!$D36,'Liste de dépenses'!F:F,\"dans\",'Liste de dépenses'!H:H,\"<>\"&LocalCurrencyCode)*(IF(ProRateOrSum=1,MonthlyMultiplier,1))","v":0},"USD",{"$f":"SUMIFS('Liste de dépenses'!J:J,'Liste de dépenses'!D:D,'Dépenses mensuelles'!$D36,'Liste de dépenses'!F:F,\"hors de\")*(IF(ProRateOrSum=1,MonthlyMultiplier,1))","v":0},"USD"]
[null,null,"Biens et services divers"]
[null,null,25,"Hairdressing salons and personal grooming establishments",{"$f":"SUMIFS('Liste de dépenses'!G:G,'Liste de dépenses'!D:D,'Dépenses mensuelles'!$D38,'Liste de dépenses'!F:F,\"dans\",'Liste de dépenses'!H:H,LocalCurrencyCode)*(IF(ProRateOrSum=1,MonthlyMultiplier,1))","v":0},{"$f":"SUMIFS('Liste de dépenses'!J:J,'Liste de dépenses'!D:D,'Dépenses mensuelles'!$D38,'Liste de dépenses'!F:F,\"dans\",'Liste de dépenses'!H:H,\"<>\"&LocalCurrencyCode)*(IF(ProRateOrSum=1,MonthlyMultiplier,1))","v":0},"USD",{"$f":"SUMIFS('Liste de dépenses'!J:J,'Liste de dépenses'!D:D,'Dépenses mensuelles'!$D38,'Liste de dépenses'!F:F,\"hors de\")*(IF(ProRateOrSum=1,MonthlyMultiplier,1))","v":0},"USD"]
[null,null,26,"Cosmétiques et d'autres produits de soins personnels",{"$f":"SUMIFS('Liste de dépenses'!G:G,'Liste de dépenses'!D:D,'Dépenses mensuelles'!$D39,'Liste de dépenses'!F:F,\"dans\",'Liste de dépenses'!H:H,LocalCurrencyCode)*(IF(ProRateOrSum=1,MonthlyMultiplier,1))","v":0},{"$f":"SUMIFS('Liste de dépenses'!J:J,'Liste de dépenses'!D:D,'Dépenses mensuelles'!$D39,'Liste de dépenses'!F:F,\"dans\",'Liste de dépenses'!H:H,\"<>\"&LocalCurrencyCode)*(IF(ProRateOrSum=1,MonthlyMultiplier,1))","v":0},"USD",{"$f":"SUMIFS('Liste de dépenses'!J:J,'Liste de dépenses'!D:D,'Dépenses mensuelles'!$D39,'Liste de dépenses'!F:F,\"hors de\")*(IF(ProRateOrSum=1,MonthlyMultiplier,1))","v":0},"USD"]
[null,null,"Autres dépenses"]
[null,null,27,"Envoi de fonds à l'étranger (sauf pour l'éducation et des services médicaux)",{"$f":"SUMIFS('Liste de dépenses'!G:G,'Liste de dépenses'!D:D,'Dépenses mensuelles'!$D41,'Liste de dépenses'!F:F,\"dans\",'Liste de dépenses'!H:H,LocalCurrencyCode)*(IF(ProRateOrSum=1,MonthlyMultiplier,1))","v":0},{"$f":"SUMIFS('Liste de dépenses'!J:J,'Liste de dépenses'!D:D,'Dépenses mensuelles'!$D41,'Liste de dépenses'!F:F,\"dans\",'Liste de dépenses'!H:H,\"<>\"&LocalCurrencyCode)*(IF(ProRateOrSum=1,MonthlyMultiplier,1))","v":0},"USD",{"$f":"SUMIFS('Liste de dépenses'!J:J,'Liste de dépenses'!D:D,'Dépenses mensuelles'!$D41,'Liste de dépenses'!F:F,\"hors de\")*(IF(ProRateOrSum=1,MonthlyMultiplier,1))","v":0},"USD"]
[null,null,28,"Autres dépenses (mensuelles)",{"$f":"SUMIFS('Liste de dépenses'!G:G,'Liste de dépenses'!D:D,'Dépenses mensuelles'!$D42,'Liste de dépenses'!F:F,\"dans\",'Liste de dépenses'!H:H,LocalCurrencyCode)*(IF(ProRateOrSum=1,MonthlyMultiplier,1))","v":0},{"$f":"SUMIFS('Liste de dépenses'!J:J,'Liste de dépenses'!D:D,'Dépenses mensuelles'!$D42,'Liste de dépenses'!F:F,\"dans\",'Liste de dépenses'!H:H,\"<>\"&LocalCurrencyCode)*(IF(ProRateOrSum=1,MonthlyMultiplier,1))","v":0},"USD",{"$f":"SUMIFS('Liste de dépenses'!J:J,'Liste de dépenses'!D:D,'Dépenses mensuelles'!$D42,'Liste de dépenses'!F:F,\"hors de\")*(IF(ProRateOrSum=1,MonthlyMultiplier,1))","v":0},"USD"]

{"sheet":"Dépenses annuelles","index":5,"n_rows":56,"n_cols":9,"rows_kept":56,"cut":false,"hidden":false,"merged":[[1,3,2,3],[3,1,52,1]]}
[]
[null,null,null,"CFPI Journal électronique pour\nles dépenses annuelles","À L'INTÉRIEUR\n(du pays du lieu d'affectation)",null,null,"DEHORS\n(du pays du lieu d'affectation)"]
[null,null,null,null,"Dépenses locales\nen monnaie locale","Dépenses en monnaie étrangère\n(exprimées en USD)",null,"Dépenses non locales\n(exprimées en USD)"]
[null,"DÉPENSES ANNUELLES","Vêtements et chaussures"]
[null,null,29,"Vêtements pour homme",{"$f":"SUMIFS('Liste de dépenses'!G:G,'Liste de dépenses'!D:D,'Dépenses annuelles'!$D5,'Liste de dépenses'!F:F,\"dans\",'Liste de dépenses'!H:H,LocalCurrencyCode)","v":0},{"$f":"SUMIFS('Liste de dépenses'!J:J,'Liste de dépenses'!D:D,'Dépenses annuelles'!$D5,'Liste de dépenses'!F:F,\"dans\",'Liste de dépenses'!H:H,\"<>\"&LocalCurrencyCode)","v":0},"USD",{"$f":"SUMIFS('Liste de dépenses'!J:J,'Liste de dépenses'!D:D,'Dépenses annuelles'!$D5,'Liste de dépenses'!F:F,\"hors de\")","v":0},"USD"]
[null,null,30,"Vêtements pour femme",{"$f":"SUMIFS('Liste de dépenses'!G:G,'Liste de dépenses'!D:D,'Dépenses annuelles'!$D6,'Liste de dépenses'!F:F,\"dans\",'Liste de dépenses'!H:H,LocalCurrencyCode)","v":0},{"$f":"SUMIFS('Liste de dépenses'!J:J,'Liste de dépenses'!D:D,'Dépenses annuelles'!$D6,'Liste de dépenses'!F:F,\"dans\",'Liste de dépenses'!H:H,\"<>\"&LocalCurrencyCode)","v":0},"USD",{"$f":"SUMIFS('Liste de dépenses'!J:J,'Liste de dépenses'!D:D,'Dépenses annuelles'!$D6,'Liste de dépenses'!F:F,\"hors de\")","v":0},"USD"]
[null,null,31,"Vêtements pour garçons et filles",{"$f":"SUMIFS('Liste de dépenses'!G:G,'Liste de dépenses'!D:D,'Dépenses annuelles'!$D7,'Liste de dépenses'!F:F,\"dans\",'Liste de dépenses'!H:H,LocalCurrencyCode)","v":0},{"$f":"SUMIFS('Liste de dépenses'!J:J,'Liste de dépenses'!D:D,'Dépenses annuelles'!$D7,'Liste de dépenses'!F:F,\"dans\",'Liste de dépenses'!H:H,\"<>\"&LocalCurrencyCode)","v":0},"USD",{"$f":"SUMIFS('Liste de dépenses'!J:J,'Liste de dépenses'!D:D,'Dépenses annuelles'!$D7,'Liste de dépenses'!F:F,\"hors de\")","v":0},"USD"]
[null,null,32,"Articles et accessoires de vêtements",{"$f":"SUMIFS('Liste de dépenses'!G:G,'Liste de dépenses'!D:D,'Dépenses annuelles'!$D8,'Liste de dépenses'!F:F,\"dans\",'Liste de dépenses'!H:H,LocalCurrencyCode)","v":0},{"$f":"SUMIFS('Liste de dépenses'!J:J,'Liste de dépenses'!D:D,'Dépenses annuelles'!$D8,'Liste de dépenses'!F:F,\"dans\",'Liste de dépenses'!H:H,\"<>\"&LocalCurrencyCode)","v":0},"USD",{"$f":"SUMIFS('Liste de dépenses'!J:J,'Liste de dépenses'!D:D,'Dépenses annuelles'!$D8,'Liste de dépenses'!F:F,\"hors de\")","v":0},"USD"]
[null,null,33,"Chaussures",{"$f":"SUMIFS('Liste de dépenses'!G:G,'Liste de dépenses'!D:D,'Dépenses annuelles'!$D9,'Liste de dépenses'!F:F,\"dans\",'Liste de dépenses'!H:H,LocalCurrencyCode)","v":0},{"$f":"SUMIFS('Liste de dépenses'!J:J,'Liste de dépenses'!D:D,'Dépenses annuelles'!$D9,'Liste de dépenses'!F:F,\"dans\",'Liste de dépenses'!H:H,\"<>\"&LocalCurrencyCode)","v":0},"USD",{"$f":"SUMIFS('Liste de dépenses'!J:J,'Liste de dépenses'!D:D,'Dépenses annuelles'!$D9,'Liste de dépenses'!F:F,\"hors de\")","v":0},"USD"]
[null,null,"Meubles, appareils ménagers et entretien courrant de la maison"]
[null,null,34,"Meubles et ameublement, tapis et autres revêtements de sol",{"$f":"SUMIFS('Liste de dépenses'!G:G,'Liste de dépenses'!D:D,'Dépenses annuelles'!$D11,'Liste de dépenses'!F:F,\"dans\",'Liste de dépenses'!H:H,LocalCurrencyCode)","v":0},{"$f":"SUMIFS('Liste de dépenses'!J:J,'Liste de dépenses'!D:D,'Dépenses annuelles'!$D11,'Liste de dépenses'!F:F,\"dans\",'Liste de dépenses'!H:H,\"<>\"&LocalCurrencyCode)","v":0},"USD",{"$f":"SUMIFS('Liste de dépenses'!J:J,'Liste de dépenses'!D:D,'Dépenses annuelles'!$D11,'Liste de dépenses'!F:F,\"hors de\")","v":0},"USD"]
[null,null,35,"Textiles ménagers, y compris la réparation",{"$f":"SUMIFS('Liste de dépenses'!G:G,'Liste de dépenses'!D:D,'Dépenses annuelles'!$D12,'Liste de dépenses'!F:F,\"dans\",'Liste de dépenses'!H:H,LocalCurrencyCode)","v":0},{"$f":"SUMIFS('Liste de dépenses'!J:J,'Liste de dépenses'!D:D,'Dépenses annuelles'!$D12,'Liste de dépenses'!F:F,\"dans\",'Liste de dépenses'!H:H,\"<>\"&LocalCurrencyCode)","v":0},"USD",{"$f":"SUMIFS('Liste de dépenses'!J:J,'Liste de dépenses'!D:D,'Dépenses annuelles'!$D12,'Liste de dépenses'!F:F,\"hors de\")","v":0},"USD"]
[null,null,36,"Petits appareils électroménagers",{"$f":"SUMIFS('Liste de dépenses'!G:G,'Liste de dépenses'!D:D,'Dépenses annuelles'!$D13,'Liste de dépenses'!F:F,\"dans\",'Liste de dépenses'!H:H,LocalCurrencyCode)","v":0},{"$f":"SUMIFS('Liste de dépenses'!J:J,'Liste de dépenses'!D:D,'Dépenses annuelles'!$D13,'Liste de dépenses'!F:F,\"dans\",'Liste de dépenses'!H:H,\"<>\"&LocalCurrencyCode)","v":0},"USD",{"$f":"SUMIFS('Liste de dépenses'!J:J,'Liste de dépenses'!D:D,'Dépenses annuelles'!$D13,'Liste de dépenses'!F:F,\"hors de\")","v":0},"USD"]
[null,null,37,"Verrerie, vaisselle et ustensiles de ménage",{"$f":"SUMIFS('Liste de dépenses'!G:G,'Liste de dépenses'!D:D,'Dépenses annuelles'!$D14,'Liste de dépenses'!F:F,\"dans\",'Liste de dépenses'!H:H,LocalCurrencyCode)","v":0},{"$f":"SUMIFS('Liste de dépenses'!J:J,'Liste de dépenses'!D:D,'Dépenses annuelles'!$D14,'Liste de dépenses'!F:F,\"dans\",'Liste de dépenses'!H:H,\"<>\"&LocalCurrencyCode)","v":0},"USD",{"$f":"SUMIFS('Liste de dépenses'!J:J,'Liste de dépenses'!D:D,'Dépenses annuelles'!$D14,'Liste de dépenses'!F:F,\"hors de\")","v":0},"USD"]
[null,null,38,"Outils, matériel et autres articles ménagers non durables",{"$f":"SUMIFS('Liste de dépenses'!G:G,'Liste de dépenses'!D:D,'Dépenses annuelles'!$D15,'Liste de dépenses'!F:F,\"dans\",'Liste de dépenses'!H:H,LocalCurrencyCode)","v":0},{"$f":"SUMIFS('Liste de dépenses'!J:J,'Liste de dépenses'!D:D,'Dépenses annuelles'!$D15,'Liste de dépenses'!F:F,\"dans\",'Liste de dépenses'!H:H,\"<>\"&LocalCurrencyCode)","v":0},"USD",{"$f":"SUMIFS('Liste de dépenses'!J:J,'Liste de dépenses'!D:D,'Dépenses annuelles'!$D15,'Liste de dépenses'!F:F,\"hors de\")","v":0},"USD"]
[null,null,"Santé"]
[null,null,39,"Matériel et appareils médicaux, autres fournitures médicales",{"$f":"SUMIFS('Liste de dépenses'!G:G,'Liste de dépenses'!D:D,'Dépenses annuelles'!$D17,'Liste de dépenses'!F:F,\"dans\",'Liste de dépenses'!H:H,LocalCurrencyCode)","v":0},{"$f":"SUMIFS('Liste de dépenses'!J:J,'Liste de dépenses'!D:D,'Dépenses annuelles'!$D17,'Liste de dépenses'!F:F,\"dans\",'Liste de dépenses'!H:H,\"<>\"&LocalCurrencyCode)","v":0},"USD",{"$f":"SUMIFS('Liste de dépenses'!J:J,'Liste de dépenses'!D:D,'Dépenses annuelles'!$D17,'Liste de dépenses'!F:F,\"hors de\")","v":0},"USD"]
[null,null,40,"Services médicaux, paramédicaux et dentaires",{"$f":"SUMIFS('Liste de dépenses'!G:G,'Liste de dépenses'!D:D,'Dépenses annuelles'!$D18,'Liste de dépenses'!F:F,\"dans\",'Liste de dépenses'!H:H,LocalCurrencyCode)","v":0},{"$f":"SUMIFS('Liste de dépenses'!J:J,'Liste de dépenses'!D:D,'Dépenses annuelles'!$D18,'Liste de dépenses'!F:F,\"dans\",'Liste de dépenses'!H:H,\"<>\"&LocalCurrencyCode)","v":0},"USD",{"$f":"SUMIFS('Liste de dépenses'!J:J,'Liste de dépenses'!D:D,'Dépenses annuelles'!$D18,'Liste de dépenses'!F:F,\"hors de\")","v":0},"USD"]
[null,null,"Transport"]
[null,null,41,"Pièces de rechange et accessoires pour moyens de transport personnels",{"$f":"SUMIFS('Liste de dépenses'!G:G,'Liste de dépenses'!D:D,'Dépenses annuelles'!$D20,'Liste de dépenses'!F:F,\"dans\",'Liste de dépenses'!H:H,LocalCurrencyCode)","v":0},{"$f":"SUMIFS('Liste de dépenses'!J:J,'Liste de dépenses'!D:D,'Dépenses annuelles'!$D20,'Liste de dépenses'!F:F,\"dans\",'Liste de dépenses'!H:H,\"<>\"&LocalCurrencyCode)","v":0},"USD",{"$f":"SUMIFS('Liste de dépenses'!J:J,'Liste de dépenses'!D:D,'Dépenses annuelles'!$D20,'Liste de dépenses'!F:F,\"hors de\")","v":0},"USD"]
[null,null,42,"Entretien et réparation des moyens de transports personnels",{"$f":"SUMIFS('Liste de dépenses'!G:G,'Liste de dépenses'!D:D,'Dépenses annuelles'!$D21,'Liste de dépenses'!F:F,\"dans\",'Liste de dépenses'!H:H,LocalCurrencyCode)","v":0},{"$f":"SUMIFS('Liste de dépenses'!J:J,'Liste de dépenses'!D:D,'Dépenses annuelles'!$D21,'Liste de dépenses'!F:F,\"dans\",'Liste de dépenses'!H:H,\"<>\"&LocalCurrencyCode)","v":0},"USD",{"$f":"SUMIFS('Liste de dépenses'!J:J,'Liste de dépenses'!D:D,'Dépenses annuelles'!$D21,'Liste de dépenses'!F:F,\"hors de\")","v":0},"USD"]
[null,null,43,"Autres services relatifs aux transports personnels et publics",{"$f":"SUMIFS('Liste de dépenses'!G:G,'Liste de dépenses'!D:D,'Dépenses annuelles'!$D22,'Liste de dépenses'!F:F,\"dans\",'Liste de dépenses'!H:H,LocalCurrencyCode)","v":0},{"$f":"SUMIFS('Liste de dépenses'!J:J,'Liste de dépenses'!D:D,'Dépenses annuelles'!$D22,'Liste de dépenses'!F:F,\"dans\",'Liste de dépenses'!H:H,\"<>\"&LocalCurrencyCode)","v":0},"USD",{"$f":"SUMIFS('Liste de dépenses'!J:J,'Liste de dépenses'!D:D,'Dépenses annuelles'!$D22,'Liste de dépenses'!F:F,\"hors de\")","v":0},"USD"]
[null,null,44,"Transport longue distance",{"$f":"SUMIFS('Liste de dépenses'!G:G,'Liste de dépenses'!D:D,'Dépenses annuelles'!$D23,'Liste de dépenses'!F:F,\"dans\",'Liste de dépenses'!H:H,LocalCurrencyCode)","v":0},{"$f":"SUMIFS('Liste de dépenses'!J:J,'Liste de dépenses'!D:D,'Dépenses annuelles'!$D23,'Liste de dépenses'!F:F,\"dans\",'Liste de dépenses'!H:H,\"<>\"&LocalCurrencyCode)","v":0},"USD",{"$f":"SUMIFS('Liste de dépenses'!J:J,'Liste de dépenses'!D:D,'Dépenses annuelles'!$D23,'Liste de dépenses'!F:F,\"hors de\")","v":0},"USD"]
[null,null,45,"Transport aérien",{"$f":"SUMIFS('Liste de dépenses'!G:G,'Liste de dépenses'!D:D,'Dépenses annuelles'!$D24,'Liste de dépenses'!F:F,\"dans\",'Liste de dépenses'!H:H,LocalCurrencyCode)","v":0},{"$f":"SUMIFS('Liste de dépenses'!J:J,'Liste de dépenses'!D:D,'Dépenses annuelles'!$D24,'Liste de dépenses'!F:F,\"dans\",'Liste de dépenses'!H:H,\"<>\"&LocalCurrencyCode)","v":0},"USD",{"$f":"SUMIFS('Liste de dépenses'!J:J,'Liste de dépenses'!D:D,'Dépenses annuelles'!$D24,'Liste de dépenses'!F:F,\"hors de\")","v":0},"USD"]
[null,null,"Communication"]
[null,null,46,"Matériel de communication",{"$f":"SUMIFS('Liste de dépenses'!G:G,'Liste de dépenses'!D:D,'Dépenses annuelles'!$D26,'Liste de dépenses'!F:F,\"dans\",'Liste de dépenses'!H:H,LocalCurrencyCode)","v":0},{"$f":"SUMIFS('Liste de dépenses'!J:J,'Liste de dépenses'!D:D,'Dépenses annuelles'!$D26,'Liste de dépenses'!F:F,\"dans\",'Liste de dépenses'!H:H,\"<>\"&LocalCurrencyCode)","v":0},"USD",{"$f":"SUMIFS('Liste de dépenses'!J:J,'Liste de dépenses'!D:D,'Dépenses annuelles'!$D26,'Liste de dépenses'!F:F,\"hors de\")","v":0},"USD"]
[null,null,"Recreation and Culture"]
[null,null,47,"Matériel audiovisuel, y compris la réparation",{"$f":"SUMIFS('Liste de dépenses'!G:G,'Liste de dépenses'!D:D,'Dépenses annuelles'!$D28,'Liste de dépenses'!F:F,\"dans\",'Liste de dépenses'!H:H,LocalCurrencyCode)","v":0},{"$f":"SUMIFS('Liste de dépenses'!J:J,'Liste de dépenses'!D:D,'Dépenses annuelles'!$D28,'Liste de dépenses'!F:F,\"dans\",'Liste de dépenses'!H:H,\"<>\"&LocalCurrencyCode)","v":0},"USD",{"$f":"SUMIFS('Liste de dépenses'!J:J,'Liste de dépenses'!D:D,'Dépenses annuelles'!$D28,'Liste de dépenses'!F:F,\"hors de\")","v":0},"USD"]
[null,null,48,"Matériel photographique et instruments d'optique, y compris la réparation",{"$f":"SUMIFS('Liste de dépenses'!G:G,'Liste de dépenses'!D:D,'Dépenses annuelles'!$D29,'Liste de dépenses'!F:F,\"dans\",'Liste de dépenses'!H:H,LocalCurrencyCode)","v":0},{"$f":"SUMIFS('Liste de dépenses'!J:J,'Liste de dépenses'!D:D,'Dépenses annuelles'!$D29,'Liste de dépenses'!F:F,\"dans\",'Liste de dépenses'!H:H,\"<>\"&LocalCurrencyCode)","v":0},"USD",{"$f":"SUMIFS('Liste de dépenses'!J:J,'Liste de dépenses'!D:D,'Dépenses annuelles'!$D29,'Liste de dépenses'!F:F,\"hors de\")","v":0},"USD"]
[null,null,49,"Matériel informatique, y compris la réparation",{"$f":"SUMIFS('Liste de dépenses'!G:G,'Liste de dépenses'!D:D,'Dépenses annuelles'!$D30,'Liste de dépenses'!F:F,\"dans\",'Liste de dépenses'!H:H,LocalCurrencyCode)","v":0},{"$f":"SUMIFS('Liste de dépenses'!J:J,'Liste de dépenses'!D:D,'Dépenses annuelles'!$D30,'Liste de dépenses'!F:F,\"dans\",'Liste de dépenses'!H:H,\"<>\"&LocalCurrencyCode)","v":0},"USD",{"$f":"SUMIFS('Liste de dépenses'!J:J,'Liste de dépenses'!D:D,'Dépenses annuelles'!$D30,'Liste de dépenses'!F:F,\"hors de\")","v":0},"USD"]
[null,null,50,"Supports d'enregistrement (disques compacts, cassettes, films)\t",{"$f":"SUMIFS('Liste de dépenses'!G:G,'Liste de dépenses'!D:D,'Dépenses annuelles'!$D31,'Liste de dépenses'!F:F,\"dans\",'Liste de dépenses'!H:H,LocalCurrencyCode)","v":0},{"$f":"SUMIFS('Liste de dépenses'!J:J,'Liste de dépenses'!D:D,'Dépenses annuelles'!$D31,'Liste de dépenses'!F:F,\"dans\",'Liste de dépenses'!H:H,\"<>\"&LocalCurrencyCode)","v":0},"USD",{"$f":"SUMIFS('Liste de dépenses'!J:J,'Liste de dépenses'!D:D,'Dépenses annuelles'!$D31,'Liste de dépenses'!F:F,\"hors de\")","v":0},"USD"]
[null,null,"51a","Petits articles de sport, matériel de camping et loisirs de plein air",{"$f":"SUMIFS('Liste de dépenses'!G:G,'Liste de dépenses'!D:D,'Dépenses annuelles'!$D32,'Liste de dépenses'!F:F,\"dans\",'Liste de dépenses'!H:H,LocalCurrencyCode)","v":0},{"$f":"SUMIFS('Liste de dépenses'!J:J,'Liste de dépenses'!D:D,'Dépenses annuelles'!$D32,'Liste de dépenses'!F:F,\"dans\",'Liste de dépenses'!H:H,\"<>\"&LocalCurrencyCode)","v":0},"USD",{"$f":"SUMIFS('Liste de dépenses'!J:J,'Liste de dépenses'!D:D,'Dépenses annuelles'!$D32,'Liste de dépenses'!F:F,\"hors de\")","v":0},"USD"]
[null,null,"51b","Articles durables pour les loisirs de plein air et d'intérieur",{"$f":"SUMIFS('Liste de dépenses'!G:G,'Liste de dépenses'!D:D,'Dépenses annuelles'!$D33,'Liste de dépenses'!F:F,\"dans\",'Liste de dépenses'!H:H,LocalCurrencyCode)","v":0},{"$f":"SUMIFS('Liste de dépenses'!J:J,'Liste de dépenses'!D:D,'Dépenses annuelles'!$D33,'Liste de dépenses'!F:F,\"dans\",'Liste de dépenses'!H:H,\"<>\"&LocalCurrencyCode)","v":0},"USD",{"$f":"SUMIFS('Liste de dépenses'!J:J,'Liste de dépenses'!D:D,'Dépenses annuelles'!$D33,'Liste de dépenses'!F:F,\"hors de\")","v":0},"USD"]
[null,null,"51c","Entretien et réparation d'articles de loisirs durables incluant les instruments de musique",{"$f":"SUMIFS('Liste de dépenses'!G:G,'Liste de dépenses'!D:D,'Dépenses annuelles'!$D34,'Liste de dépenses'!F:F,\"dans\",'Liste de dépenses'!H:H,LocalCurrencyCode)","v":0},{"$f":"SUMIFS('Liste de dépenses'!J:J,'Liste de dépenses'!D:D,'Dépenses annuelles'!$D34,'Liste de dépenses'!F:F,\"dans\",'Liste de dépenses'!H:H,\"<>\"&LocalCurrencyCode)","v":0},"USD",{"$f":"SUMIFS('Liste de dépenses'!J:J,'Liste de dépenses'!D:D,'Dépenses annuelles'!$D34,'Liste de dépenses'!F:F,\"hors de\")","v":0},"USD"]
[null,null,52,"Jeux, jouets et articles de détente",{"$f":"SUMIFS('Liste de dépenses'!G:G,'Liste de dépenses'!D:D,'Dépenses annuelles'!$D35,'Liste de dépenses'!F:F,\"dans\",'Liste de dépenses'!H:H,LocalCurrencyCode)","v":0},{"$f":"SUMIFS('Liste de dépenses'!J:J,'Liste de dépenses'!D:D,'Dépenses annuelles'!$D35,'Liste de dépenses'!F:F,\"dans\",'Liste de dépenses'!H:H,\"<>\"&LocalCurrencyCode)","v":0},"USD",{"$f":"SUMIFS('Liste de dépenses'!J:J,'Liste de dépenses'!D:D,'Dépenses annuelles'!$D35,'Liste de dépenses'!F:F,\"hors de\")","v":0},"USD"]
[null,null,53,"Jardins, plantes et fleurs",{"$f":"SUMIFS('Liste de dépenses'!G:G,'Liste de dépenses'!D:D,'Dépenses annuelles'!$D36,'Liste de dépenses'!F:F,\"dans\",'Liste de dépenses'!H:H,LocalCurrencyCode)","v":0},{"$f":"SUMIFS('Liste de dépenses'!J:J,'Liste de dépenses'!D:D,'Dépenses annuelles'!$D36,'Liste de dépenses'!F:F,\"dans\",'Liste de dépenses'!H:H,\"<>\"&LocalCurrencyCode)","v":0},"USD",{"$f":"SUMIFS('Liste de dépenses'!J:J,'Liste de dépenses'!D:D,'Dépenses annuelles'!$D36,'Liste de dépenses'!F:F,\"hors de\")","v":0},"USD"]
[null,null,"Éducation"]
[null,null,"54a","Frais d'inscription et de scolarité",{"$f":"SUMIFS('Liste de dépenses'!G:G,'Liste de dépenses'!D:D,'Dépenses annuelles'!$D38,'Liste de dépenses'!F:F,\"dans\",'Liste de dépenses'!H:H,LocalCurrencyCode)","v":0},{"$f":"SUMIFS('Liste de dépenses'!J:J,'Liste de dépenses'!D:D,'Dépenses annuelles'!$D38,'Liste de dépenses'!F:F,\"dans\",'Liste de dépenses'!H:H,\"<>\"&LocalCurrencyCode)","v":0},"USD",{"$f":"SUMIFS('Liste de dépenses'!J:J,'Liste de dépenses'!D:D,'Dépenses annuelles'!$D38,'Liste de dépenses'!F:F,\"hors de\")","v":0},"USD"]
[null,null,"54b","Logement, repas et cantine scolaire",{"$f":"SUMIFS('Liste de dépenses'!G:G,'Liste de dépenses'!D:D,'Dépenses annuelles'!$D39,'Liste de dépenses'!F:F,\"dans\",'Liste de dépenses'!H:H,LocalCurrencyCode)","v":0},{"$f":"SUMIFS('Liste de dépenses'!J:J,'Liste de dépenses'!D:D,'Dépenses annuelles'!$D39,'Liste de dépenses'!F:F,\"dans\",'Liste de dépenses'!H:H,\"<>\"&LocalCurrencyCode)","v":0},"USD",{"$f":"SUMIFS('Liste de dépenses'!J:J,'Liste de dépenses'!D:D,'Dépenses annuelles'!$D39,'Liste de dépenses'!F:F,\"hors de\")","v":0},"USD"]
[null,null,"54c","Livres et fournitures",{"$f":"SUMIFS('Liste de dépenses'!G:G,'Liste de dépenses'!D:D,'Dépenses annuelles'!$D40,'Liste de dépenses'!F:F,\"dans\",'Liste de dépenses'!H:H,LocalCurrencyCode)","v":0},{"$f":"SUMIFS('Liste de dépenses'!J:J,'Liste de dépenses'!D:D,'Dépenses annuelles'!$D40,'Liste de dépenses'!F:F,\"dans\",'Liste de dépenses'!H:H,\"<>\"&LocalCurrencyCode)","v":0},"USD",{"$f":"SUMIFS('Liste de dépenses'!J:J,'Liste de dépenses'!D:D,'Dépenses annuelles'!$D40,'Liste de dépenses'!F:F,\"hors de\")","v":0},"USD"]
[null,null,"54d","Transports collectifs",{"$f":"SUMIFS('Liste de dépenses'!G:G,'Liste de dépenses'!D:D,'Dépenses annuelles'!$D41,'Liste de dépenses'!F:F,\"dans\",'Liste de dépenses'!H:H,LocalCurrencyCode)","v":0},{"$f":"SUMIFS('Liste de dépenses'!J:J,'Liste de dépenses'!D:D,'Dépenses annuelles'!$D41,'Liste de dépenses'!F:F,\"dans\",'Liste de dépenses'!H:H,\"<>\"&LocalCurrencyCode)","v":0},"USD",{"$f":"SUMIFS('Liste de dépenses'!J:J,'Liste de dépenses'!D:D,'Dépenses annuelles'!$D41,'Liste de dépenses'!F:F,\"hors de\")","v":0},"USD"]
[null,null,"54e","Crêche",{"$f":"SUMIFS('Liste de dépenses'!G:G,'Liste de dépenses'!D:D,'Dépenses annuelles'!$D42,'Liste de dépenses'!F:F,\"dans\",'Liste de dépenses'!H:H,LocalCurrencyCode)","v":0},{"$f":"SUMIFS('Liste de dépenses'!J:J,'Liste de dépenses'!D:D,'Dépenses annuelles'!$D42,'Liste de dépenses'!F:F,\"dans\",'Liste de dépenses'!H:H,\"<>\"&LocalCurrencyCode)","v":0},"USD",{"$f":"SUMIFS('Liste de dépenses'!J:J,'Liste de dépenses'!D:D,'Dépenses annuelles'!$D42,'Liste de dépenses'!F:F,\"hors de\")","v":0},"USD"]
[null,null,"54f","Activités extrascolaires",{"$f":"SUMIFS('Liste de dépenses'!G:G,'Liste de dépenses'!D:D,'Dépenses annuelles'!$D43,'Liste de dépenses'!F:F,\"dans\",'Liste de dépenses'!H:H,LocalCurrencyCode)","v":0},{"$f":"SUMIFS('Liste de dépenses'!J:J,'Liste de dépenses'!D:D,'Dépenses annuelles'!$D43,'Liste de dépenses'!F:F,\"dans\",'Liste de dépenses'!H:H,\"<>\"&LocalCurrencyCode)","v":0},"USD",{"$f":"SUMIFS('Liste de dépenses'!J:J,'Liste de dépenses'!D:D,'Dépenses annuelles'!$D43,'Liste de dépenses'!F:F,\"hors de\")","v":0},"USD"]
[null,null,"Restaurants et hôtels"]
[null,null,55,"Hôtels, motels et camping",{"$f":"SUMIFS('Liste de dépenses'!G:G,'Liste de dépenses'!D:D,'Dépenses annuelles'!$D45,'Liste de dépenses'!F:F,\"dans\",'Liste de dépenses'!H:H,LocalCurrencyCode)","v":0},{"$f":"SUMIFS('Liste de dépenses'!J:J,'Liste de dépenses'!D:D,'Dépenses annuelles'!$D45,'Liste de dépenses'!F:F,\"dans\",'Liste de dépenses'!H:H,\"<>\"&LocalCurrencyCode)","v":0},"USD",{"$f":"SUMIFS('Liste de dépenses'!J:J,'Liste de dépenses'!D:D,'Dépenses annuelles'!$D45,'Liste de dépenses'!F:F,\"hors de\")","v":0},"USD"]
[null,null,"Biens et services divers"]
[null,null,56,"Appareils electriques pour les soins personnels, y compris les réparations",{"$f":"SUMIFS('Liste de dépenses'!G:G,'Liste de dépenses'!D:D,'Dépenses annuelles'!$D47,'Liste de dépenses'!F:F,\"dans\",'Liste de dépenses'!H:H,LocalCurrencyCode)","v":0},{"$f":"SUMIFS('Liste de dépenses'!J:J,'Liste de dépenses'!D:D,'Dépenses annuelles'!$D47,'Liste de dépenses'!F:F,\"dans\",'Liste de dépenses'!H:H,\"<>\"&LocalCurrencyCode)","v":0},"USD",{"$f":"SUMIFS('Liste de dépenses'!J:J,'Liste de dépenses'!D:D,'Dépenses annuelles'!$D47,'Liste de dépenses'!F:F,\"hors de\")","v":0},"USD"]
[null,null,"57a","Petits bijoux, horloges et montres",{"$f":"SUMIFS('Liste de dépenses'!G:G,'Liste de dépenses'!D:D,'Dépenses annuelles'!$D48,'Liste de dépenses'!F:F,\"dans\",'Liste de dépenses'!H:H,LocalCurrencyCode)","v":0},{"$f":"SUMIFS('Liste de dépenses'!J:J,'Liste de dépenses'!D:D,'Dépenses annuelles'!$D48,'Liste de dépenses'!F:F,\"dans\",'Liste de dépenses'!H:H,\"<>\"&LocalCurrencyCode)","v":0},"USD",{"$f":"SUMIFS('Liste de dépenses'!J:J,'Liste de dépenses'!D:D,'Dépenses annuelles'!$D48,'Liste de dépenses'!F:F,\"hors de\")","v":0},"USD"]
[null,null,"57b","Articles de voyage (valises, sacs, etc)",{"$f":"SUMIFS('Liste de dépenses'!G:G,'Liste de dépenses'!D:D,'Dépenses annuelles'!$D49,'Liste de dépenses'!F:F,\"dans\",'Liste de dépenses'!H:H,LocalCurrencyCode)","v":0},{"$f":"SUMIFS('Liste de dépenses'!J:J,'Liste de dépenses'!D:D,'Dépenses annuelles'!$D49,'Liste de dépenses'!F:F,\"dans\",'Liste de dépenses'!H:H,\"<>\"&LocalCurrencyCode)","v":0},"USD",{"$f":"SUMIFS('Liste de dépenses'!J:J,'Liste de dépenses'!D:D,'Dépenses annuelles'!$D49,'Liste de dépenses'!F:F,\"hors de\")","v":0},"USD"]
[null,null,"57c","Autres effets personnels",{"$f":"SUMIFS('Liste de dépenses'!G:G,'Liste de dépenses'!D:D,'Dépenses annuelles'!$D50,'Liste de dépenses'!F:F,\"dans\",'Liste de dépenses'!H:H,LocalCurrencyCode)","v":0},{"$f":"SUMIFS('Liste de dépenses'!J:J,'Liste de dépenses'!D:D,'Dépenses annuelles'!$D50,'Liste de dépenses'!F:F,\"dans\",'Liste de dépenses'!H:H,\"<>\"&LocalCurrencyCode)","v":0},"USD",{"$f":"SUMIFS('Liste de dépenses'!J:J,'Liste de dépenses'!D:D,'Dépenses annuelles'!$D50,'Liste de dépenses'!F:F,\"hors de\")","v":0},"USD"]
[null,null,58,"Services financiers, assurances et d'autres services",{"$f":"SUMIFS('Liste de dépenses'!G:G,'Liste de dépenses'!D:D,'Dépenses annuelles'!$D51,'Liste de dépenses'!F:F,\"dans\",'Liste de dépenses'!H:H,LocalCurrencyCode)","v":0},{"$f":"SUMIFS('Liste de dépenses'!J:J,'Liste de dépenses'!D:D,'Dépenses annuelles'!$D51,'Liste de dépenses'!F:F,\"dans\",'Liste de dépenses'!H:H,\"<>\"&LocalCurrencyCode)","v":0},"USD",{"$f":"SUMIFS('Liste de dépenses'!J:J,'Liste de dépenses'!D:D,'Dépenses annuelles'!$D51,'Liste de dépenses'!F:F,\"hors de\")","v":0},"USD"]
[null,null,"Autres dépenses"]
[null,null,59,"Autres dépenses (annuelles)",{"$f":"SUMIFS('Liste de dépenses'!G:G,'Liste de dépenses'!D:D,'Dépenses annuelles'!$D53,'Liste de dépenses'!F:F,\"dans\",'Liste de dépenses'!H:H,LocalCurrencyCode)","v":0},{"$f":"SUMIFS('Liste de dépenses'!J:J,'Liste de dépenses'!D:D,'Dépenses annuelles'!$D53,'Liste de dépenses'!F:F,\"dans\",'Liste de dépenses'!H:H,\"<>\"&LocalCurrencyCode)","v":0},"USD",{"$f":"SUMIFS('Liste de dépenses'!J:J,'Liste de dépenses'!D:D,'Dépenses annuelles'!$D53,'Liste de dépenses'!F:F,\"hors de\")","v":0},"USD"]
[null,null,"Véhicules"]
[null,null,60,"Voiture (solde d'achat et vente)",{"$f":"SUMIFS('Liste de dépenses'!G:G,'Liste de dépenses'!D:D,'Dépenses annuelles'!$D55,'Liste de dépenses'!F:F,\"dans\",'Liste de dépenses'!H:H,LocalCurrencyCode)","v":0},{"$f":"SUMIFS('Liste de dépenses'!J:J,'Liste de dépenses'!D:D,'Dépenses annuelles'!$D55,'Liste de dépenses'!F:F,\"dans\",'Liste de dépenses'!H:H,\"<>\"&LocalCurrencyCode)","v":0},"USD",{"$f":"SUMIFS('Liste de dépenses'!J:J,'Liste de dépenses'!D:D,'Dépenses annuelles'!$D55,'Liste de dépenses'!F:F,\"hors de\")","v":0},"USD"]
[null,null,61,"D'autres véhicles (solde d'achat et vente): motos, scooters, vélomoteurs",{"$f":"SUMIFS('Liste de dépenses'!G:G,'Liste de dépenses'!D:D,'Dépenses annuelles'!$D56,'Liste de dépenses'!F:F,\"dans\",'Liste de dépenses'!H:H,LocalCurrencyCode)","v":0},{"$f":"SUMIFS('Liste de dépenses'!J:J,'Liste de dépenses'!D:D,'Dépenses annuelles'!$D56,'Liste de dépenses'!F:F,\"dans\",'Liste de dépenses'!H:H,\"<>\"&LocalCurrencyCode)","v":0},"USD",{"$f":"SUMIFS('Liste de dépenses'!J:J,'Liste de dépenses'!D:D,'Dépenses annuelles'!$D56,'Liste de dépenses'!F:F,\"hors de\")","v":0},"USD"]

{"sheet":"Reference","index":6,"n_rows":180,"n_cols":47,"rows_kept":180,"cut":false,"hidden":true,"merged":[]}
[1,"janvier",null,"Afghanistan",null,"Afghanistan","Afghani","AFN","AFN :  Afghani Afghanistan",null,"dans",null,1,"Autres dépenses","Autres dépenses",null,1,"Boissons alcoolisées et tabacs","Vêtements et chaussures","Communication","Éducation","Produits alimentaires et boissons non alcoolisées","Meubles, appareils ménagers et entretien courrant de la maison","Santé","Logement et services publics","Biens et services divers","Autres dépenses","Loisirs et culture","Restaurants et hôtels","Transport","Véhicules",null,1,"AFN",1,null,"Activités extrascolaires","Éducation","Y",null,"DATE","CATÉGORIE D'ARTICLE","SOUS-CATÉGORIE D'ARTICLE","DESCRIPTION D'ARTICLE","Dans le / Hors du\nlieu d'affectation","MONTANT","DEVISE"]
[2,"février",null,"Afrique du Sud",null,"Afrique du Sud","Rand","ZAR","ZAR :  Rand Afrique du Sud",null,"hors de",null,2,"Biens et services divers","Biens et services divers",null,2,"Boissons alcoolisées","Vêtements pour garçons et filles","Services postaux","Logement, repas et cantine scolaire","Nourriture achetée aux supermarchés, épiceries, etc","Articles ménagers jetables","Services médicaux, paramédicaux et dentaires","Logement, eau, électricité, gaz, etc.","Cosmétiques et d'autres produits de soins personnels","Autres dépenses (mensuelles)","Matériel audiovisuel, y compris la réparation","Hôtels, motels et camping","Transport aérien","Voiture (solde d'achat et vente)",null,2,"AED",2,null,"Animaux de compagnie et produits et services connexes","Loisirs et culture","M"]
[3,"mars",null,"Albanie",null,"Albanie","Lek","ALL","ALL :  Lek Albanie",null,null,null,3,"Boissons alcoolisées et tabacs","Boissons alcoolisées et tabacs",null,3,"Tabacs","Articles et accessoires de vêtements","Matériel de communication","Livres et fournitures","Boissons non alcoolisées","Meubles et ameublement, tapis et autres revêtements de sol","Médicaments sans ordonnance et vitamines","Coût des employés de maison","Appareils electriques pour les soins personnels, y compris les réparations","Autres dépenses (annuelles)","Livres, journaux et périodiques","Repas et boissons achetés dans les restaurants du personnel, la cafétéria","Assurance automobile","D'autres véhicles (solde d'achat et vente): motos, scooters, vélomoteurs",null,3,"ALL",3,null,"Appareils electriques pour les soins personnels, y compris les réparations","Biens et services divers","Y"]
[4,"avril",null,"Algérie",null,"Algérie","Dinar","DZD","DZD :  Dinar Algérie",null,null,null,4,"Communication","Communications",null,4,null,"Chaussures","Services de téléphone, internet et communication","Activités extrascolaires",null,"Verrerie, vaisselle et ustensiles de ménage","Médicaments sur ordonnance",null,"Services financiers, assurances et d'autres services","Envoi de fonds à l'étranger (sauf pour l'éducation et des services médicaux)","Cinéma, théâtre, concerts et d’autres activités connexes","Repas et boissons achetés dans les restaurants et cafés commerciaux","Carburants et lubrifiants pour le transport personnel",null,null,4,"AMD",4,null,"Articles de voyage (valises, sacs, etc)","Biens et services divers","Y"]
[5,"mai",null,"Allemagne",null,"Allemagne","Euro","EUR","EUR :  Euro",null,null,null,5,"Éducation","Enseignement",null,5,null,"Vêtements pour homme",null,"Crêche",null,"Textiles ménagers, y compris la réparation","Assurance médicale additionnelle",null,"Salons de coiffure et établissements de toilettage",null,"Articles durables pour les loisirs de plein air et d'intérieur",null,"Services de transport locaux",null,null,5,"ANG",5,null,"Articles durables pour les loisirs de plein air et d'intérieur","Loisirs et culture","Y"]
[6,"juin",null,"Angola",null,"Angola","Kwanza","AOA","AOA :  Kwanza Angola",null,null,null,6,"Logement et services publics","Logement et services publics",null,6,null,"Nettoyage et réparation de vêtements",null,"Transports collectifs",null,"Petits appareils électroménagers","Matériel et appareils médicaux, autres fournitures médicales",null,"Autres effets personnels",null,"Développement de pellicules et tirage",null,"Transport longue distance",null,null,6,"AOA",6,null,"Articles et accessoires de vêtements","Vêtements et chaussures","Y"]
[7,"juillet",null,"Arabie Saoudite",null,"Arabie Saoudite","Riyal","SAR","SAR :  Riyal Arabie Saoudite",null,null,null,7,"Loisirs et culture","Loisirs et culture",null,7,null,"Réparation de chaussures",null,"Frais d'inscription et de scolarité",null,"Outils, matériel et autres articles ménagers non durables",null,null,"Petits bijoux, horloges et montres",null,"Jeux, jouets et articles de détente",null,"Entretien et réparation des moyens de transports personnels",null,null,7,"ARS",7,null,"Articles ménagers jetables","Meubles, appareils ménagers et entretien courrant de la maison","M"]
[8,"août",null,"Argentine",null,"Argentine","Peso","ARS","ARS :  Peso Argentine",null,null,null,8,"Meubles, appareils ménagers et entretien courrant de la maison","Meubles, appareils ménagers et entretien courrant de la maison",null,8,null,"Vêtements pour femme",null,null,null,null,null,null,"Articles de voyage (valises, sacs, etc)",null,"Jardins, plantes et fleurs",null,"Autres services relatifs aux transports personnels et publics",null,null,8,"AUD",8,null,"Assurance automobile","Transport","M"]
[9,"septembre",null,"Arménie",null,"Arménie","Dram","AMD","AMD :  Dram Arménie",null,null,null,9,"Produits alimentaires et boissons non alcoolisées","Produits alimentaires et boissons non alcoolisées",null,9,null,null,null,null,null,null,null,null,null,null,"Matériel informatique, y compris la réparation",null,"Pièces de rechange et accessoires pour moyens de transport personnels",null,null,9,"AWG",9,null,"Assurance médicale additionnelle","Santé","M"]
[10,"octobre",null,"Australie",null,"Australie","Dollar","AUD","AUD :  Dollar Australie",null,null,null,10,"Restaurants et hôtels","Restaurants et hôtels",null,10,null,null,null,null,null,null,null,null,null,null,"Entretien et réparation d'articles de loisirs durables incluant les instruments de musique",null,"Taxi",null,null,10,"AZN",10,null,"Autres dépenses (annuelles)","Autres dépenses","Y"]
[11,"novembre",null,"autre",null,"autre","Dollar","USD","USD :  Dollar États-Unis d'Amérique",null,null,null,11,"Santé","Santé",null,11,null,null,null,null,null,null,null,null,null,null,"Animaux de compagnie et produits et services connexes",null,null,null,null,11,"BAM",11,null,"Autres dépenses (mensuelles)","Autres dépenses","M"]
[12,"décembre",null,"Autriche",null,"Autriche","Euro","EUR","EUR :  Euro",null,null,null,12,"Transport","Transport",null,12,null,null,null,null,null,null,null,null,null,null,"Matériel photographique et instruments d'optique, y compris la réparation",null,null,null,null,12,"BBD",12,null,"Autres effets personnels","Biens et services divers","Y"]
[null,null,null,"Azerbaïjan",null,"Azerbaïjan","Manat","AZN","AZN :  Manat Azerbaïjan",null,null,null,13,"Véhicules","Véhicules",null,13,null,null,null,null,null,null,null,null,null,null,"Supports d'enregistrement (disques compacts, cassettes, films)",null,null,null,null,13,"BDT",13,null,"Autres services relatifs aux transports personnels et publics","Transport","Y"]
[null,null,null,"Bahamas",null,"Bahamas","Dollar","BSD","BSD :  Dollar Bahamas",null,null,null,14,"Vêtements et chaussures","Articles d'habillement et chaussures",null,14,null,null,null,null,null,null,null,null,null,null,"Petits articles de sport, matériel de camping et loisirs de plein air",null,null,null,null,14,"BGN",14,null,"Boissons alcoolisées","Boissons alcoolisées et tabacs","M"]
[null,null,null,"Bahreïn",null,"Bahreïn","Dinar","BHD","BHD :  Dinar Bahreïn",null,null,null,null,null,null,null,null,null,null,null,null,null,null,null,null,null,null,"Manifestations sportives et activités connexes",null,null,null,null,15,"BHD",15,null,"Boissons non alcoolisées","Produits alimentaires et boissons non alcoolisées","M"]
[null,null,null,"Bangladesh",null,"Bangladesh","Taka","BDT","BDT :  Taka Bangladesh",null,null,null,null,"Dépenses des ménages",null,null,null,null,null,null,null,null,null,null,null,null,null,"Papeterie et matériel de dessin",null,null,null,null,16,"BIF",16,null,"Carburants et lubrifiants pour le transport personnel","Transport","M"]
[null,null,null,"Barbade",null,"Barbados","Dollar","BBD","BBD :  Dollar Barbados",null,null,null,null,"Les dépenses liées au logement ",null,null,null,null,null,null,null,null,null,null,null,null,null,null,null,null,null,null,17,"BMD",17,null,"Chaussures","Vêtements et chaussures","Y"]
[null,null,null,"Belgique",null,"Belgique","Euro","EUR","EUR :  Euro",null,null,null,null,null,null,null,null,null,null,null,null,null,null,null,null,null,null,null,null,null,null,null,18,"BND",18,null,"Cinéma, théâtre, concerts et d’autres activités connexes","Loisirs et culture","M"]
[null,null,null,"Belize",null,"Belize","Dollar","BZD","BZD :  Dollar Belize",null,null,null,null,null,null,null,null,null,null,null,null,null,null,null,null,null,null,null,null,null,null,null,19,"BOB",19,null,"Cosmétiques et d'autres produits de soins personnels","Biens et services divers","M"]
[null,null,null,"Bénin",null,"Bénin","Franc CFA","XOF","XOF :  Franc CFA",null,null,null,null,null,null,null,null,null,null,null,null,null,null,null,null,null,null,null,null,null,null,null,20,"BRL",20,null,"Coût des employés de maison","Logement et services publics","M"]
[null,null,null,"Bhoutan",null,"Bhoutan","Ngultrum","BTN","BTN :  Ngultrum Bhoutan",null,null,null,null,null,null,null,null,null,null,null,null,null,null,null,null,null,null,null,null,null,null,null,21,"BSD",21,null,"Crêche","Éducation","Y"]
[null,null,null,"Biélorussie",null,"Biélorussie","Rouble","BYN","BYN :  Rouble Biélorussie",null,null,null,null,null,null,null,null,null,null,null,null,null,null,null,null,null,null,null,null,null,null,null,22,"BTN",22,null,"D'autres véhicles (solde d'achat et vente): motos, scooters, vélomoteurs","Véhicules","5Y"]
[null,null,null,"Bolivie (Etat plurinational de)",null,"Bolivie (Etat plurinational de)","Boliviano","BOB","BOB :  Boliviano Bolivie (Etat plurinational de)",null,null,null,null,null,null,null,null,null,null,null,null,null,null,null,null,null,null,null,null,null,null,null,23,"BWP",23,null,"Développement de pellicules et tirage","Loisirs et culture","M"]
[null,null,null,"Bosnie-Herzégovine",null,"Bosnie-Herzégovine","Mark convertible","BAM","BAM :  Mark convertible Bosnie-Herzégovine",null,null,null,null,null,null,null,null,null,null,null,null,null,null,null,null,null,null,null,null,null,null,null,24,"BYN",24,null,"Entretien et réparation d'articles de loisirs durables incluant les instruments de musique","Loisirs et culture","Y"]
[null,null,null,"Botswana",null,"Botswana","Pula","BWP","BWP :  Pula Botswana",null,null,null,null,null,null,null,null,null,null,null,null,null,null,null,null,null,null,null,null,null,null,null,25,"BZD",25,null,"Entretien et réparation des moyens de transports personnels","Transport","Y"]
[null,null,null,"Brésil",null,"Brésil","Real","BRL","BRL :  Real Brésil",null,null,null,null,null,null,null,null,null,null,null,null,null,null,null,null,null,null,null,null,null,null,null,26,"CAD",26,null,"Envoi de fonds à l'étranger (sauf pour l'éducation et des services médicaux)","Autres dépenses","M"]
[null,null,null,"Bulgarie",null,"Bulgarie","Lev","BGN","BGN :  Lev Bulgarie",null,null,null,null,null,null,null,null,null,null,null,null,null,null,null,null,null,null,null,null,null,null,null,27,"CDF",27,null,"Frais d'inscription et de scolarité","Éducation","Y"]
[null,null,null,"Burkina Faso",null,"Burkina Faso","Franc CFA","XOF","XOF :  Franc CFA",null,null,null,null,null,null,null,null,null,null,null,null,null,null,null,null,null,null,null,null,null,null,null,28,"CHF",28,null,"Hôtels, motels et camping","Restaurants et hôtels","Y"]
[null,null,null,"Burundi",null,"Burundi","Franc","BIF","BIF :  Franc Burundi",null,null,null,null,null,null,null,null,null,null,null,null,null,null,null,null,null,null,null,null,null,null,null,29,"CLP",29,null,"Jardins, plantes et fleurs","Loisirs et culture","Y"]
[null,null,null,"Cambodge",null,"Cambodge","Riel","KHR","KHR :  Riel Cambodge",null,null,null,null,null,null,null,null,null,null,null,null,null,null,null,null,null,null,null,null,null,null,null,30,"CNY",30,null,"Jeux, jouets et articles de détente","Loisirs et culture","Y"]
[null,null,null,"Cameroun",null,"Cameroun","CFA","XAF","XAF :  Franc CFA",null,null,null,null,null,null,null,null,null,null,null,null,null,null,null,null,null,null,null,null,null,null,null,31,"COP",31,null,"Livres et fournitures","Éducation","Y"]
[null,null,null,"Canada",null,"Canada","Dollar","CAD","CAD :  Dollar Canada",null,null,null,null,null,null,null,null,null,null,null,null,null,null,null,null,null,null,null,null,null,null,null,32,"CRC",32,null,"Livres, journaux et périodiques","Loisirs et culture","M"]
[null,null,null,"Cape-Vert",null,"Cape-Vert","Escudo","CVE","CVE :  Escudo Cape-Vert",null,null,null,null,null,null,null,null,null,null,null,null,null,null,null,null,null,null,null,null,null,null,null,33,"CUP",33,null,"Logement, eau, électricité, gaz, etc.","Logement et services publics","M"]
[null,null,null,"Chili",null,"Chili","Peso","CLP","CLP :  Peso Chili",null,null,null,null,null,null,null,null,null,null,null,null,null,null,null,null,null,null,null,null,null,null,null,34,"CVE",34,null,"Logement, repas et cantine scolaire","Éducation","Y"]
[null,null,null,"Chine, Beijing",null,"Chine, Beijing","Renminbi","CNY","CNY :  Renminbi Chine, Beijing",null,null,null,null,null,null,null,null,null,null,null,null,null,null,null,null,null,null,null,null,null,null,null,35,"CZK",35,null,"Manifestations sportives et activités connexes","Loisirs et culture","M"]
[null,null,null,"Chine, Hong Kong",null,"Chine, Hong Kong","Dollar","HKD","HKD :  Dollar Chine, Hong Kong",null,null,null,null,null,null,null,null,null,null,null,null,null,null,null,null,null,null,null,null,null,null,null,36,"DJF",36,null,"Matériel audiovisuel, y compris la réparation","Loisirs et culture","Y"]
[null,null,null,"Chine, Macau",null,"Chine, Macau","Pataca","MOP","MOP :  Pataca Chine, Macau",null,null,null,null,null,null,null,null,null,null,null,null,null,null,null,null,null,null,null,null,null,null,null,37,"DKK",37,null,"Matériel de communication","Communication","Y"]
[null,null,null,"Chypre",null,"Chypre","Euro","EUR","EUR :  Euro",null,null,null,null,null,null,null,null,null,null,null,null,null,null,null,null,null,null,null,null,null,null,null,38,"DOP",38,null,"Matériel et appareils médicaux, autres fournitures médicales","Santé","Y"]
[null,null,null,"Colombie",null,"Colombie","Peso","COP","COP :  Peso Colombie",null,null,null,null,null,null,null,null,null,null,null,null,null,null,null,null,null,null,null,null,null,null,null,39,"DZD",39,null,"Matériel informatique, y compris la réparation","Loisirs et culture","Y"]
[null,null,null,"Comores",null,"Comores","Franc","KMF","KMF :  Franc Comores",null,null,null,null,null,null,null,null,null,null,null,null,null,null,null,null,null,null,null,null,null,null,null,40,"EGP",40,null,"Matériel photographique et instruments d'optique, y compris la réparation","Loisirs et culture","Y"]
[null,null,null,"Congo",null,"Congo","Franc CFA","XAF","XAF :  Franc CFA",null,null,null,null,null,null,null,null,null,null,null,null,null,null,null,null,null,null,null,null,null,null,null,41,"ERN",41,null,"Médicaments sans ordonnance et vitamines","Santé","M"]
[null,null,null,"Corée",null,"Corée","Won","KRW","KRW :  Won Corée",null,null,null,null,null,null,null,null,null,null,null,null,null,null,null,null,null,null,null,null,null,null,null,42,"ETB",42,null,"Médicaments sur ordonnance","Santé","M"]
[null,null,null,"Costa Rica",null,"Costa Rica","Colón","CRC","CRC :  Colón Costa Rica",null,null,null,null,null,null,null,null,null,null,null,null,null,null,null,null,null,null,null,null,null,null,null,43,"EUR",43,null,"Meubles et ameublement, tapis et autres revêtements de sol","Meubles, appareils ménagers et entretien courrant de la maison","Y"]
[null,null,null,"Côte D'Ivoire",null,"Côte D'Ivoire","Franc CFA","XOF","XOF :  Franc CFA",null,null,null,null,null,null,null,null,null,null,null,null,null,null,null,null,null,null,null,null,null,null,null,44,"FJD",44,null,"Nettoyage et réparation de vêtements","Vêtements et chaussures","M"]
[null,null,null,"Croatie",null,"Croatie","Kuna","HRK","HRK :  Kuna Croatie",null,null,null,null,null,null,null,null,null,null,null,null,null,null,null,null,null,null,null,null,null,null,null,45,"GBP",45,null,"Nourriture achetée aux supermarchés, épiceries, etc","Produits alimentaires et boissons non alcoolisées","M"]
[null,null,null,"Cuba",null,"Cuba","Peso","CUP","CUP :  Peso Cuba",null,null,null,null,null,null,null,null,null,null,null,null,null,null,null,null,null,null,null,null,null,null,null,46,"GEL",46,null,"Outils, matériel et autres articles ménagers non durables","Meubles, appareils ménagers et entretien courrant de la maison","Y"]
[null,null,null,"Danemark",null,"Danemark","Krone","DKK","DKK :  Krone Danemark",null,null,null,null,null,null,null,null,null,null,null,null,null,null,null,null,null,null,null,null,null,null,null,47,"GHS",47,null,"Papeterie et matériel de dessin","Loisirs et culture","M"]
[null,null,null,"Djibouti",null,"Djibouti","\tFranc","DJF","DJF :  \tFranc Djibouti",null,null,null,null,null,null,null,null,null,null,null,null,null,null,null,null,null,null,null,null,null,null,null,48,"GMD",48,null,"Petits appareils électroménagers","Meubles, appareils ménagers et entretien courrant de la maison","Y"]
[null,null,null,"Égypte",null,"Égypte","Pound","EGP","EGP :  Pound Égypte",null,null,null,null,null,null,null,null,null,null,null,null,null,null,null,null,null,null,null,null,null,null,null,49,"GNF",49,null,"Petits articles de sport, matériel de camping et loisirs de plein air","Loisirs et culture","Y"]
[null,null,null,"Émirats Arabes Unis",null,"Émirats Arabes Unis","Dirham","AED","AED :  Dirham Émirats Arabes Unis",null,null,null,null,null,null,null,null,null,null,null,null,null,null,null,null,null,null,null,null,null,null,null,50,"GTQ",50,null,"Petits bijoux, horloges et montres","Biens et services divers","Y"]
[null,null,null,"Équateur",null,"Équateur","Dollar","USD","USD :  Dollar États-Unis d'Amérique",null,null,null,null,null,null,null,null,null,null,null,null,null,null,null,null,null,null,null,null,null,null,null,51,"GYD",51,null,"Pièces de rechange et accessoires pour moyens de transport personnels","Transport","Y"]
[null,null,null,"Érythrée",null,"Érythrée","Nakfa","ERN","ERN :  Nakfa Érythrée",null,null,null,null,null,null,null,null,null,null,null,null,null,null,null,null,null,null,null,null,null,null,null,52,"HKD",52,null,"Réparation de chaussures","Vêtements et chaussures","M"]
[null,null,null,"Espagne",null,"Espagne","Euro","EUR","EUR :  Euro",null,null,null,null,null,null,null,null,null,null,null,null,null,null,null,null,null,null,null,null,null,null,null,53,"HNL",53,null,"Repas et boissons achetés dans les restaurants du personnel, la cafétéria","Restaurants et hôtels","M"]
[null,null,null,"Estonie",null,"Estonie","Euro","EUR","EUR :  Euro",null,null,null,null,null,null,null,null,null,null,null,null,null,null,null,null,null,null,null,null,null,null,null,54,"HRK",54,null,"Repas et boissons achetés dans les restaurants et cafés commerciaux","Restaurants et hôtels","M"]
[null,null,null,"Eswatini (Royaume d’)",null,"Eswatini (Royaume d’)","Lilangeni","SZL","SZL :  Lilangeni Eswatini (Royaume d’)",null,null,null,null,null,null,null,null,null,null,null,null,null,null,null,null,null,null,null,null,null,null,null,55,"HTG",55,null,"Salons de coiffure et établissements de toilettage","Biens et services divers","M"]
[null,null,null,"États-Unis d'Amérique",null,"États-Unis d'Amérique","Dollar","USD","USD :  Dollar États-Unis d'Amérique",null,null,null,null,null,null,null,null,null,null,null,null,null,null,null,null,null,null,null,null,null,null,null,56,"HUF",56,null,"Services de téléphone, internet et communication","Communication","M"]
[null,null,null,"Éthiopie",null,"Éthiopie","Birr","ETB","ETB :  Birr Éthiopie",null,null,null,null,null,null,null,null,null,null,null,null,null,null,null,null,null,null,null,null,null,null,null,57,"IDR",57,null,"Services de transport locaux","Transport","M"]
[null,null,null,"Fiji",null,"Fiji","Dollar","FJD","FJD :  Dollar Fiji",null,null,null,null,null,null,null,null,null,null,null,null,null,null,null,null,null,null,null,null,null,null,null,58,"ILS",58,null,"Services financiers, assurances et d'autres services","Biens et services divers","Y"]
[null,null,null,"Finlande",null,"Finlande","Euro","EUR","EUR :  Euro",null,null,null,null,null,null,null,null,null,null,null,null,null,null,null,null,null,null,null,null,null,null,null,59,"INR",59,null,"Services médicaux, paramédicaux et dentaires","Santé","Y"]
[null,null,null,"France",null,"France","Euro","EUR","EUR :  Euro",null,null,null,null,null,null,null,null,null,null,null,null,null,null,null,null,null,null,null,null,null,null,null,60,"IQD",60,null,"Services postaux","Communication","M"]
[null,null,null,"Gabon",null,"Gabon","Franc CFA","XAF","XAF :  Franc CFA",null,null,null,null,null,null,null,null,null,null,null,null,null,null,null,null,null,null,null,null,null,null,null,61,"IRR",61,null,"Supports d'enregistrement (disques compacts, cassettes, films)","Loisirs et culture","Y"]
[null,null,null,"Gambie",null,"Gambie","Dalasi","GMD","GMD :  Dalasi Gambie",null,null,null,null,null,null,null,null,null,null,null,null,null,null,null,null,null,null,null,null,null,null,null,62,"ISK",62,null,"Tabacs","Boissons alcoolisées et tabacs","M"]
[null,null,null,"Géorgie",null,"Géorgie","Lari","GEL","GEL :  Lari Géorgie",null,null,null,null,null,null,null,null,null,null,null,null,null,null,null,null,null,null,null,null,null,null,null,63,"JMD",63,null,"Taxi","Transport","M"]
[null,null,null,"Ghana",null,"Ghana","Cedi","GHS","GHS :  Cedi Ghana",null,null,null,null,null,null,null,null,null,null,null,null,null,null,null,null,null,null,null,null,null,null,null,64,"JOD",64,null,"Textiles ménagers, y compris la réparation","Meubles, appareils ménagers et entretien courrant de la maison","Y"]
[null,null,null,"Grèce",null,"Grèce","Euro","EUR","EUR :  Euro",null,null,null,null,null,null,null,null,null,null,null,null,null,null,null,null,null,null,null,null,null,null,null,65,"JPY",65,null,"Transport aérien","Transport","Y"]
[null,null,null,"Guatemala",null,"Guatemala","Quetzal","GTQ","GTQ :  Quetzal Guatemala",null,null,null,null,null,null,null,null,null,null,null,null,null,null,null,null,null,null,null,null,null,null,null,66,"KES",66,null,"Transport longue distance","Transport","Y"]
[null,null,null,"Guinée",null,"Guinée","Franc","GNF","GNF :  Franc Guinée",null,null,null,null,null,null,null,null,null,null,null,null,null,null,null,null,null,null,null,null,null,null,null,67,"KGS",67,null,"Transports collectifs","Éducation","Y"]
[null,null,null,"Guinée Bissau",null,"Guinée Bissau","Franc CFA","XOF","XOF :  Franc CFA",null,null,null,null,null,null,null,null,null,null,null,null,null,null,null,null,null,null,null,null,null,null,null,68,"KHR",68,null,"Verrerie, vaisselle et ustensiles de ménage","Meubles, appareils ménagers et entretien courrant de la maison","Y"]
[null,null,null,"Guinée Équatoriale",null,"Guinée Équatoriale","Franc CFA","XAF","XAF :  Franc CFA",null,null,null,null,null,null,null,null,null,null,null,null,null,null,null,null,null,null,null,null,null,null,null,69,"KMF",69,null,"Vêtements pour femme","Vêtements et chaussures","Y"]
[null,null,null,"Guyana (république coopérative du)",null,"Guyana (république coopérative du)","Dollar","GYD","GYD :  Dollar Guyana (république coopérative du)",null,null,null,null,null,null,null,null,null,null,null,null,null,null,null,null,null,null,null,null,null,null,null,70,"KPW",70,null,"Vêtements pour garçons et filles","Vêtements et chaussures","Y"]
[null,null,null,"Haïti",null,"Haïti","Gourde","HTG","HTG :  Gourde Haïti",null,null,null,null,null,null,null,null,null,null,null,null,null,null,null,null,null,null,null,null,null,null,null,71,"KRW",71,null,"Vêtements pour homme","Vêtements et chaussures","Y"]
[null,null,null,"Honduras",null,"Honduras","Lempira","HNL","HNL :  Lempira Honduras",null,null,null,null,null,null,null,null,null,null,null,null,null,null,null,null,null,null,null,null,null,null,null,72,"KWD",72,null,"Voiture (solde d'achat et vente)","Véhicules","5Y"]
[null,null,null,"Hongrie",null,"Hongrie","Forint","HUF","HUF :  Forint Hongrie",null,null,null,null,null,null,null,null,null,null,null,null,null,null,null,null,null,null,null,null,null,null,null,73,"KYD",73]
[null,null,null,"Îles Salomon",null,"Îles Salomon","Dollar","SBD","SBD :  Dollar Îles Salomon",null,null,null,null,null,null,null,null,null,null,null,null,null,null,null,null,null,null,null,null,null,null,null,74,"KZT",74]
[null,null,null,"Inde",null,"Inde","Rupee","INR","INR :  Rupee Inde",null,null,null,null,null,null,null,null,null,null,null,null,null,null,null,null,null,null,null,null,null,null,null,75,"LAK",75]
[null,null,null,"Indonésie",null,"Indonésie","Rupiah","IDR","IDR :  Rupiah Indonésie",null,null,null,null,null,null,null,null,null,null,null,null,null,null,null,null,null,null,null,null,null,null,null,76,"LBP",76]
[null,null,null,"Iran (République islamique d')",null,"Iran (République islamique d')","Rial","IRR","IRR :  Rial Iran (République islamique d')",null,null,null,null,null,null,null,null,null,null,null,null,null,null,null,null,null,null,null,null,null,null,null,77,"LKR",77]
[null,null,null,"Iraq",null,"Iraq","Dinar","IQD","IQD :  Dinar Iraq",null,null,null,null,null,null,null,null,null,null,null,null,null,null,null,null,null,null,null,null,null,null,null,78,"LRD",78]
[null,null,null,"Irlande",null,"Irlande","Euro","EUR","EUR :  Euro",null,null,null,null,null,null,null,null,null,null,null,null,null,null,null,null,null,null,null,null,null,null,null,79,"LSL",79]
[null,null,null,"Italie",null,"Italie","Euro","EUR","EUR :  Euro",null,null,null,null,null,null,null,null,null,null,null,null,null,null,null,null,null,null,null,null,null,null,null,80,"LYD",80]
[null,null,null,"Jamaïque",null,"Jamaïque","Dollar","JMD","JMD : Dollar Jamaïque",null,null,null,null,null,null,null,null,null,null,null,null,null,null,null,null,null,null,null,null,null,null,null,81,"MAD",81]
[null,null,null,"Japon",null,"Japon","Yen","JPY","JPY : Yen Japon",null,null,null,null,null,null,null,null,null,null,null,null,null,null,null,null,null,null,null,null,null,null,null,82,"MDL",82]
[null,null,null,"Jerusalem",null,"Jerusalem","Shekel","ILS","ILS : Shekel Israël",null,null,null,null,null,null,null,null,null,null,null,null,null,null,null,null,null,null,null,null,null,null,null,83,"MGA",83]
[null,null,null,"Jordanie",null,"Jordanie","Dinar","JOD","JOD :  Dinar Jordanie",null,null,null,null,null,null,null,null,null,null,null,null,null,null,null,null,null,null,null,null,null,null,null,84,"MKD",84]
[null,null,null,"Kazakhstan",null,"Kazakhstan","Tenge","KZT","KZT :  Tenge Kazakhstan",null,null,null,null,null,null,null,null,null,null,null,null,null,null,null,null,null,null,null,null,null,null,null,85,"MMK",85]
[null,null,null,"Kenya",null,"Kenya","Shilling","KES","KES :  Shilling Kenya",null,null,null,null,null,null,null,null,null,null,null,null,null,null,null,null,null,null,null,null,null,null,null,86,"MNT",86]
[null,null,null,"Kirghizistan",null,"Kirghizistan","Som","KGS","KGS :  Som Kirghizistan",null,null,null,null,null,null,null,null,null,null,null,null,null,null,null,null,null,null,null,null,null,null,null,87,"MOP",87]
[null,null,null,"Kiribati (République des)",null,"Kiribati (République des)","Dollar","AUD","AUD :  Dollar Australie",null,null,null,null,null,null,null,null,null,null,null,null,null,null,null,null,null,null,null,null,null,null,null,88,"MRU",88]
[null,null,null,"Koweït",null,"Koweït","Dinar","KWD","KWD :  Dinar Koweït",null,null,null,null,null,null,null,null,null,null,null,null,null,null,null,null,null,null,null,null,null,null,null,89,"MUR",89]
[null,null,null,"Laos (République démocratique populaire lao)",null,"Laos (République démocratique populaire lao)","Kip","LAK","LAK :  Kip Laos (République démocratique populaire lao)",null,null,null,null,null,null,null,null,null,null,null,null,null,null,null,null,null,null,null,null,null,null,null,90,"MVR",90]
[null,null,null,"Lesotho",null,"Lesotho","Loti","LSL","LSL :  Loti Lesotho",null,null,null,null,null,null,null,null,null,null,null,null,null,null,null,null,null,null,null,null,null,null,null,91,"MWK",91]
[null,null,null,"Lettonie",null,"Lettonie","Euro","EUR","EUR :  Euro",null,null,null,null,null,null,null,null,null,null,null,null,null,null,null,null,null,null,null,null,null,null,null,92,"MXN",92]
[null,null,null,"Liban",null,"Liban","Pound","LBP","LBP :  Pound Liban",null,null,null,null,null,null,null,null,null,null,null,null,null,null,null,null,null,null,null,null,null,null,null,93,"MYR",93]
[null,null,null,"Libéria",null,"Libéria","Dollar","LRD","LRD :  Dollar Libéria",null,null,null,null,null,null,null,null,null,null,null,null,null,null,null,null,null,null,null,null,null,null,null,94,"MZN",94]
[null,null,null,"Libye",null,"Libye","Dinar","LYD","LYD :  Dinar Libye",null,null,null,null,null,null,null,null,null,null,null,null,null,null,null,null,null,null,null,null,null,null,null,95,"NAD",95]
[null,null,null,"Lituanie",null,"Lituanie","Euro","EUR","EUR :  Euro",null,null,null,null,null,null,null,null,null,null,null,null,null,null,null,null,null,null,null,null,null,null,null,96,"NGN",96]
[null,null,null,"Macédoine du Nord",null,"Macédoine du Nord","Denar","MKD","MKD :  Denar Macédoine du Nord",null,null,null,null,null,null,null,null,null,null,null,null,null,null,null,null,null,null,null,null,null,null,null,97,"NIO",97]
[null,null,null,"Madagascar",null,"Madagascar","Ariary","MGA","MGA :  Ariary Madagascar",null,null,null,null,null,null,null,null,null,null,null,null,null,null,null,null,null,null,null,null,null,null,null,98,"NOK",98]
[null,null,null,"Malaisie",null,"Malaisie","Ringgit","MYR","MYR :  Ringgit Malaisie",null,null,null,null,null,null,null,null,null,null,null,null,null,null,null,null,null,null,null,null,null,null,null,99,"NPR",99]
[null,null,null,"Malawi",null,"Malawi","Kwacha","MWK","MWK :  Kwacha Malawi",null,null,null,null,null,null,null,null,null,null,null,null,null,null,null,null,null,null,null,null,null,null,null,100,"NZD",100]
[null,null,null,"Maldives",null,"Maldives","Rufiyaa","MVR","MVR :  Rufiyaa Maldives",null,null,null,null,null,null,null,null,null,null,null,null,null,null,null,null,null,null,null,null,null,null,null,101,"OMR",101]
[null,null,null,"Mali",null,"Mali","Franc CFA","XOF","XOF :  Franc CFA",null,null,null,null,null,null,null,null,null,null,null,null,null,null,null,null,null,null,null,null,null,null,null,102,"PAB",102]
[null,null,null,"Malte",null,"Malte","Euro","EUR","EUR :  Euro",null,null,null,null,null,null,null,null,null,null,null,null,null,null,null,null,null,null,null,null,null,null,null,103,"PEN",103]
[null,null,null,"Maroc",null,"Maroc","Dirham","MAD","MAD :  Dirham Maroc",null,null,null,null,null,null,null,null,null,null,null,null,null,null,null,null,null,null,null,null,null,null,null,104,"PGK",104]
[null,null,null,"Maurice (République de)",null,"Maurice (République de)","Rupee","MUR","MUR :  Rupee Maurice (République de)",null,null,null,null,null,null,null,null,null,null,null,null,null,null,null,null,null,null,null,null,null,null,null,105,"PHP",105]
[null,null,null,"Mauritanie",null,"Mauritanie","Ouguiya","MRU","MRU :  Ouguiya Mauritanie",null,null,null,null,null,null,null,null,null,null,null,null,null,null,null,null,null,null,null,null,null,null,null,106,"PKR",106]
[null,null,null,"Mexique",null,"Mexique","Peso","MXN","MXN :  Peso Mexique",null,null,null,null,null,null,null,null,null,null,null,null,null,null,null,null,null,null,null,null,null,null,null,107,"PLN",107]
[null,null,null,"Moldavie",null,"Moldavie","Leu","MDL","MDL :  Leu Moldavie",null,null,null,null,null,null,null,null,null,null,null,null,null,null,null,null,null,null,null,null,null,null,null,108,"PYG",108]
[null,null,null,"Mongolie",null,"Mongolie","Tugrik","MNT","MNT :  Tugrik Mongolie",null,null,null,null,null,null,null,null,null,null,null,null,null,null,null,null,null,null,null,null,null,null,null,109,"QAR",109]
[null,null,null,"Monténégro",null,"Monténégro","Euro","EUR","EUR :  Euro",null,null,null,null,null,null,null,null,null,null,null,null,null,null,null,null,null,null,null,null,null,null,null,110,"RON",110]
[null,null,null,"Mozambique",null,"Mozambique","Metical","MZN","MZN :  Metical Mozambique",null,null,null,null,null,null,null,null,null,null,null,null,null,null,null,null,null,null,null,null,null,null,null,111,"RSD",111]
[null,null,null,"Myanmar",null,"Myanmar","Kyat","MMK","MMK :  Kyat Myanmar",null,null,null,null,null,null,null,null,null,null,null,null,null,null,null,null,null,null,null,null,null,null,null,112,"RUB",112]
[null,null,null,"Namibie",null,"Namibie","Dollar","NAD","NAD :  Dollar Namibie",null,null,null,null,null,null,null,null,null,null,null,null,null,null,null,null,null,null,null,null,null,null,null,113,"RWF",113]
[null,null,null,"Népal",null,"Népal","Rupee","NPR","NPR :  Rupee Népal",null,null,null,null,null,null,null,null,null,null,null,null,null,null,null,null,null,null,null,null,null,null,null,114,"SAR",114]
[null,null,null,"Nicaragua",null,"Nicaragua","Cordoba Oro","NIO","NIO :  Cordoba Oro Nicaragua",null,null,null,null,null,null,null,null,null,null,null,null,null,null,null,null,null,null,null,null,null,null,null,115,"SBD",115]
[null,null,null,"Niger",null,"Niger","Franc CFA","XOF","XOF :  Franc CFA",null,null,null,null,null,null,null,null,null,null,null,null,null,null,null,null,null,null,null,null,null,null,null,116,"SCR",116]
[null,null,null,"Nigéria",null,"Nigéria","Naira","NGN","NGN :  Naira Nigéria",null,null,null,null,null,null,null,null,null,null,null,null,null,null,null,null,null,null,null,null,null,null,null,117,"SDG",117]
[null,null,null,"Norvège",null,"Norvège","Krone","NOK","NOK :  Krone Norvège",null,null,null,null,null,null,null,null,null,null,null,null,null,null,null,null,null,null,null,null,null,null,null,118,"SEK",118]
[null,null,null,"Nouvelle Zélande",null,"Nouvelle Zélande","Dollar","NZD","NZD :  Dollar Nouvelle Zélande",null,null,null,null,null,null,null,null,null,null,null,null,null,null,null,null,null,null,null,null,null,null,null,119,"SGD",119]
[null,null,null,"Nouvelle-Calédonie",null,"Nouvelle-Calédonie","Franc CFA","XPF","XPF :  Franc CFA Nouvelle-Calédonie",null,null,null,null,null,null,null,null,null,null,null,null,null,null,null,null,null,null,null,null,null,null,null,120,"SHP",120]
[null,null,null,"Oman (Sultanat d')",null,"Oman (Sultanat d')","Rial","OMR","OMR :  Rial Oman (Sultanat d')",null,null,null,null,null,null,null,null,null,null,null,null,null,null,null,null,null,null,null,null,null,null,null,121,"SLL",121]
[null,null,null,"Ouganda",null,"Ouganda","Shilling","UGX","UGX :  Shilling Ouganda",null,null,null,null,null,null,null,null,null,null,null,null,null,null,null,null,null,null,null,null,null,null,null,122,"SOS",122]
[null,null,null,"Ouzbékistan",null,"Ouzbékistan","Sum","UZS","UZS :  Sum Ouzbékistan",null,null,null,null,null,null,null,null,null,null,null,null,null,null,null,null,null,null,null,null,null,null,null,123,"SRD",123]
[null,null,null,"Pakistan",null,"Pakistan","Rupee","PKR","PKR :  Rupee Pakistan",null,null,null,null,null,null,null,null,null,null,null,null,null,null,null,null,null,null,null,null,null,null,null,124,"SSP",124]
[null,null,null,"Panama",null,"Panama","Balboa","PAB","PAB :  Balboa Panama",null,null,null,null,null,null,null,null,null,null,null,null,null,null,null,null,null,null,null,null,null,null,null,125,"STN",125]
[null,null,null,"Papouasie-Nouvelle-Guinée",null,"Papouasie-Nouvelle-Guinée","Kina","PGK","PGK :  Kina Papouasie-Nouvelle-Guinée",null,null,null,null,null,null,null,null,null,null,null,null,null,null,null,null,null,null,null,null,null,null,null,126,"SYP",126]
[null,null,null,"Paraguay",null,"Paraguay","Guarani","PYG","PYG :  Guarani Paraguay",null,null,null,null,null,null,null,null,null,null,null,null,null,null,null,null,null,null,null,null,null,null,null,127,"SZL",127]
[null,null,null,"Pays-bas",null,"Pays-bas","Euro","EUR","EUR :  Euro",null,null,null,null,null,null,null,null,null,null,null,null,null,null,null,null,null,null,null,null,null,null,null,128,"THB",128]
[null,null,null,"Pérou",null,"Pérou","Nuevo Sol","PEN","PEN :  Nuevo Sol Pérou",null,null,null,null,null,null,null,null,null,null,null,null,null,null,null,null,null,null,null,null,null,null,null,129,"TJS",129]
[null,null,null,"Philippines",null,"Philippines","Peso","PHP","PHP :  Peso Philippines",null,null,null,null,null,null,null,null,null,null,null,null,null,null,null,null,null,null,null,null,null,null,null,130,"TMT",130]
[null,null,null,"Pologne",null,"Pologne","Zloty","PLN","PLN :  Zloty Pologne",null,null,null,null,null,null,null,null,null,null,null,null,null,null,null,null,null,null,null,null,null,null,null,131,"TND",131]
[null,null,null,"Portugal",null,"Portugal","Euro","EUR","EUR :  Euro",null,null,null,null,null,null,null,null,null,null,null,null,null,null,null,null,null,null,null,null,null,null,null,132,"TOP",132]
[null,null,null,"Qatar",null,"Qatar","Rial","QAR","QAR :  Rial Qatar",null,null,null,null,null,null,null,null,null,null,null,null,null,null,null,null,null,null,null,null,null,null,null,133,"TRY",133]
[null,null,null,"République arabe syrienne",null,"République arabe syrienne","Pound","SYP","SYP :  Pound République arabe syrienne",null,null,null,null,null,null,null,null,null,null,null,null,null,null,null,null,null,null,null,null,null,null,null,134,"TTD",134]
[null,null,null,"République centrafricaine",null,"République centrafricaine","Franc CFA","XAF","XAF :  Franc CFA",null,null,null,null,null,null,null,null,null,null,null,null,null,null,null,null,null,null,null,null,null,null,null,135,"TZS",135]
[null,null,null,"République démocratique du Congo",null,"République démocratique du Congo","Franc","CDF","CDF :  Franc République démocratique du Congo",null,null,null,null,null,null,null,null,null,null,null,null,null,null,null,null,null,null,null,null,null,null,null,136,"UAH",136]
[null,null,null,"Republique dominicaine",null,"Republique dominicaine","Peso","DOP","DOP :  Peso Republique dominicaine",null,null,null,null,null,null,null,null,null,null,null,null,null,null,null,null,null,null,null,null,null,null,null,137,"UGX",137]
[null,null,null,"République populaire démocratique de Corée",null,"République populaire démocratique de Corée","Won","KPW","KPW :  Won République populaire démocratique de Corée",null,null,null,null,null,null,null,null,null,null,null,null,null,null,null,null,null,null,null,null,null,null,null,138,"USD",138]
[null,null,null,"Roumanie",null,"Roumanie","Leu","RON","RON :  Leu Roumanie",null,null,null,null,null,null,null,null,null,null,null,null,null,null,null,null,null,null,null,null,null,null,null,139,"UYU",139]
[null,null,null,"Royaume-Uni de Grande-Bretagne et d'Irlande du Nord",null,"Royaume-Uni de Grande-Bretagne et d'Irlande du Nord","Pound","GBP","GBP :  Pound Royaume-Uni de Grande-Bretagne et d'Irlande du Nord",null,null,null,null,null,null,null,null,null,null,null,null,null,null,null,null,null,null,null,null,null,null,null,140,"UZS",140]
[null,null,null,"Russie (Fédération de)",null,"Russie (Fédération de)","Rouble","RUB","RUB :  Rouble Russie (Fédération de)",null,null,null,null,null,null,null,null,null,null,null,null,null,null,null,null,null,null,null,null,null,null,null,141,"VEF",141]
[null,null,null,"Rwanda",null,"Rwanda","Franc","RWF","RWF :  Franc Rwanda",null,null,null,null,null,null,null,null,null,null,null,null,null,null,null,null,null,null,null,null,null,null,null,142,"VND",142]
[null,null,null,"Sainte-Lucie",null,"Sainte-Lucie","Dollar des Caraïbes orientales","XCD","XCD :  Dollar des Caraïbes orientales Sainte-Lucie",null,null,null,null,null,null,null,null,null,null,null,null,null,null,null,null,null,null,null,null,null,null,null,143,"VUV",143]
[null,null,null,"Salvador (République du)",null,"Salvador (République du)","Dollar","USD","USD :  Dollar États-Unis d'Amérique",null,null,null,null,null,null,null,null,null,null,null,null,null,null,null,null,null,null,null,null,null,null,null,144,"WST",144]
[null,null,null,"Samoa",null,"Samoa","Tala","WST","WST :  Tala Samoa",null,null,null,null,null,null,null,null,null,null,null,null,null,null,null,null,null,null,null,null,null,null,null,145,"XAF",145]
[null,null,null,"Sao Tomé-et-Principe",null,"Sao Tomé-et-Principe","Dobra","STN","STN :  Dobra Sao Tomé-et-Principe",null,null,null,null,null,null,null,null,null,null,null,null,null,null,null,null,null,null,null,null,null,null,null,146,"XCD",146]
[null,null,null,"Sénégal",null,"Sénégal","Franc CFA","XOF","XOF :  Franc CFA",null,null,null,null,null,null,null,null,null,null,null,null,null,null,null,null,null,null,null,null,null,null,null,147,"XOF",147]
[null,null,null,"Serbie",null,"Serbie","Dinar","RSD","RSD :  Dinar Serbie",null,null,null,null,null,null,null,null,null,null,null,null,null,null,null,null,null,null,null,null,null,null,null,148,"XPF",148]
[null,null,null,"Seychelles",null,"Seychelles","Rupee","SCR","SCR :  Rupee Seychelles",null,null,null,null,null,null,null,null,null,null,null,null,null,null,null,null,null,null,null,null,null,null,null,149,"YER",149]
[null,null,null,"Sierra Leone",null,"Sierra Leone","Leone","SLL","SLL :  Leone Sierra Leone",null,null,null,null,null,null,null,null,null,null,null,null,null,null,null,null,null,null,null,null,null,null,null,150,"ZAR",150]
[null,null,null,"Singapour",null,"Singapour","Dollar","SGD","SGD :  Dollar Singapour",null,null,null,null,null,null,null,null,null,null,null,null,null,null,null,null,null,null,null,null,null,null,null,151,"ZMW",151]
[null,null,null,"Slovaquie",null,"Slovaquie","Euro","EUR","EUR :  Euro",null,null,null,null,null,null,null,null,null,null,null,null,null,null,null,null,null,null,null,null,null,null,null,152,"ZWR",152]
[null,null,null,"Slovénie",null,"Slovénie","Euro","EUR","EUR :  Euro"]
[null,null,null,"Somalie",null,"Somalie","Shilling","SOS","SOS :  Shilling Somalie"]
[null,null,null,"Soudan",null,"Soudan","Pound","SDG","SDG :  Pound Soudan"]
[null,null,null,"Soudan du sud",null,"Soudan du sud","Pound","SSP","SSP :  Pound Soudan du sud"]
[null,null,null,"Sri Lanka",null,"Sri Lanka","Rupee","LKR","LKR :  Rupee Sri Lanka"]
[null,null,null,"Suède",null,"Suède","Krona","SEK","SEK :  Krona Suède"]
[null,null,null,"Suisse",null,"Suisse","Franc","CHF","CHF :  Franc Suisse"]
[null,null,null,"Suriname",null,"Suriname","Dollar","SRD","SRD :  Dollar Suriname"]
[null,null,null,"Tadjikistan",null,"Tadjikistan","Somoni","TJS","TJS :  Somoni Tadjikistan"]
[null,null,null,"Tanzanie (République-Unie de)",null,"Tanzanie (République-Unie de)","Shilling","TZS","TZS :  Shilling Tanzanie (République-Unie de)"]
[null,null,null,"Tchad",null,"Tchad","Franc CFA","XAF","XAF :  Franc CFA"]
[null,null,null,"Tchéquie",null,"Tchéquie","Koruna","CZK","CZK :  Koruna Tchéquie"]
[null,null,null,"Thailande",null,"Thailande","Baht","THB","THB :  Baht Thailande"]
[null,null,null,"Timor-Leste",null,"Timor-Leste","Dollar","USD","USD :  Dollar États-Unis d'Amérique"]
[null,null,null,"Togo",null,"Togo","Franc CFA","XOF","XOF :  Franc CFA"]
[null,null,null,"Tonga",null,"Tonga","Pa'anga","TOP","TOP :  Pa'anga Tonga"]
[null,null,null,"Trinité-et-Tobago",null,"Trinité-et-Tobago","Dollar","TTD","TTD :  Dollar Trinité-et-Tobago"]
[null,null,null,"Tunisie",null,"Tunisie","Dinar","TND","TND :  Dinar Tunisie"]
[null,null,null,"Turkménistan",null,"Turkménistan","Manat","TMT","TMT :  Manat Turkménistan"]
[null,null,null,"Turquie",null,"Turquie","Lira","TRY","TRY :  Lira Turquie"]
[null,null,null,"Ukraine",null,"Ukraine","Hryvnia","UAH","UAH :  Hryvnia Ukraine"]
[null,null,null,"Uruguay",null,"Uruguay","Peso","UYU","UYU :  Peso Uruguay"]
[null,null,null,"Vanuatu",null,"Vanuatu","Vatu","VUV","VUV :  Vatu Vanuatu"]
[null,null,null,"Venezuela (République bolivarienne du)",null,"Venezuela (République bolivarienne du)","Bolivar Fuerte","VES","VES :  Bolivar Fuerte Venezuela (République bolivarienne du)"]
[null,null,null,"Vietnam",null,"Vietnam","Dong","VND","VND :  Dong Vietnam"]
[null,null,null,"Yémen",null,"Yémen","Rial","YER","YER :  Rial Yémen"]
[null,null,null,"Zambie",null,"Zambie","Kwacha","ZMW","ZMW :  Kwacha Zambie"]
[null,null,null,"Zimbabwe",null,"Zimbabwe","Dollar","ZWL","ZWL :  Dollar Zimbabwe"]

{"sheet":"FX Rates","index":7,"n_rows":153,"n_cols":5,"rows_kept":153,"cut":false,"hidden":true,"merged":[]}
["ISO Code","15-Sep-2021 Data",null,"Duty Station",{"$f":"DSCountry","v":"Afghanistan"}]
["AFN",86.045000000000002,null,"Local Currency",{"$f":"VLOOKUP(DSCountry,CurrencyTable,3,FALSE)","v":"AFN"}]
["AED",3.673,null,"USDtoLocalMult",{"$f":"1/VLOOKUP($E$2,CurrentFXRates,2,FALSE)","v":1.1621825788831424E-2}]
["ALL",101.39]
["AMD",490.5]
["ANG",1.7669999999999999]
["AOA",643.12099999999998]
["ARS",97.710999999999999]
["AUD",1.357]
["AWG",1.79]
["AZN",1.6950000000000001]
["BAM",1.657]
["BBD",2]
["BDT",84.844999999999999]
["BGN",1.657]
["BHD",0.377]
["BIF",1968.932]
["BMD",1]
["BND",1.3420000000000001]
["BOB",6.8460000000000001]
["BRL",5.21]
["BSD",1]
["BTN",73.27]
["BWP",11.061999999999999]
["BYN",2.5070000000000001]
["BZD",2]
["CAD",1.2649999999999999]
["CDF",1968.345]
["CHF",0.92100000000000004]
["CLP",780]
["CNY",6.468]
["COP",3809]
["CRC",618.51]
["CUP",24]
["CVE",93.444999999999993]
["CZK",21.48]
["DJF",177]
["DKK",6.3019999999999996]
["DOP",56.777999999999999]
["DZD",134.77000000000001]
["EGP",15.651999999999999]
["ERN",15]
["ETB",45.332000000000001]
["EUR",0.84699999999999998]
["FJD",2.1]
["GBP",0.72299999999999998]
["GEL",3.1190000000000002]
["GHS",5.976]
["GMD",51.46]
["GNF",9719.9500000000007]
["GTQ",7.7249999999999996]
["GYD",208.2]
["HKD",7.7869999999999999]
["HNL",23.712]
["HRK",6.3520000000000003]
["HTG",95.546000000000006]
["HUF",296.2]
["IDR",14368]
["ILS",3.218]
["INR",73.27]
["IQD",1450]
["IRR",267982]
["ISK",126.99]
["JMD",150.75399999999999]
["JOD",0.70799999999999996]
["JPY",109.95]
["KES",109.72]
["KGS",84.4]
["KHR",4115]
["KMF",416.92200000000003]
["KPW",110]
["KRW",1166.3900000000001]
["KWD",0.30099999999999999]
["KYD",0.82]
["KZT",426.57]
["LAK",9590]
["LBP",1507.5]
["LKR",199.35]
["LRD",170.98099999999999]
["LSL",14.137]
["LYD",4.5359999999999996]
["MAD",8.8840000000000003]
["MDL",17.71]
["MGA",3842.05]
["MKD",51.941000000000003]
["MMK",1652]
["MNT",2835.42]
["MOP",8.0050000000000008]
["MRU",36.04]
["MUR",42.17]
["MVR",15]
["MWK",815]
["MXN",20.190000000000001]
["MYR",4.1529999999999996]
["MZN",63.1]
["NAD",14.137]
["NGN",411.33]
["NIO",34.984999999999999]
["NOK",8.6440000000000001]
["NPR",117.2189]
["NZD",1.4059999999999999]
["OMR",0.38400000000000001]
["PAB",1]
["PEN",4.08]
["PGK",3.5089999999999999]
["PHP",49.82]
["PKR",165.27]
["PLN",3.8740000000000001]
["PYG",6912]
["QAR",3.694]
["RON",4.1859999999999999]
["RSD",99.646000000000001]
["RUB",73.613]
["RWF",998.53]
["SAR",3.7509999999999999]
["SBD",7.9180000000000001]
["SCR",13.081]
["SDG",445]
["SEK",8.6229999999999993]
["SGD",1.3420000000000001]
["SHP",0.72299999999999998]
["SLL",10330]
["SOS",24300]
["SRD",21.1]
["SSP",411.79899999999998]
["STN",20.87]
["SYP",2500]
["SZL",14.137]
["THB",32.46]
["TJS",11.273]
["TMT",3.5]
["TND",2.782]
["TOP",2.1920000000000002]
["TRY",8.3770000000000007]
["TTD",6.7569999999999997]
["TZS",2310.5]
["UAH",26.75]
["UGX",3540.06]
["USD",1]
["UYU",42.371000000000002]
["UZS",10620]
["VES",4147300.52]
["VND",22755]
["VUV",108.91]
["WST",2.5529999999999999]
["XAF",555.89599999999996]
["XCD",2.7]
["XOF",555.89599999999996]
["XPF",101.129]
["YER",581.03]
["ZAR",14.137]
["ZMW",15.87]
["ZWL",83.8]

{"sheet":"Temp","index":8,"n_rows":6,"n_cols":2,"rows_kept":6,"cut":false,"hidden":true,"merged":[]}
["First Day of Record",{"$f":"MIN('Liste de dépenses'!B:B)","v":"00:00:00"}]
["Last Day of Record",{"$f":"MAX('Liste de dépenses'!B:B)","v":"00:00:00"}]
["Record Span in Days",{"$f":"RecordEnd+1-RecordStart","v":1}]
["Monthly Multiplier",{"$f":"365.25/(12*RecordSpan)","v":30.4375}]
["Yearly Multiplier",{"$f":"365.25/RecordSpan","v":365.25}]
["1: Pro-rate; 2: Sum",2]